{"text_format":"1","workbook":"xlsx","n_sheets":9,"sheets":["申請書","別表１","別表２","別表３","別表４","別表５","別表６","別表７","業種一覧"],"not_rendered":{"charts":0,"images":0,"macros":1,"external_links":0,"defined_names":8,"comments":3,"pivot_tables":0},"unopened":[],"bounds":{"document_bytes":16777216,"sheet_cells":100000,"rows_first":2000,"rows_last":500,"rows_between":2000,"halvings":0,"cell_chars":16384,"cell_head_chars":4096},"cells_cut":0,"cells_raw":0,"read":"whole","date_system":"1900"}

{"sheet":"申請書","index":0,"n_rows":40,"n_cols":31,"rows_kept":40,"cut":false,"hidden":false,"merged":[[20,21,20,34],[18,21,18,34],[19,21,19,22],[19,23,19,26],[19,27,19,29],[19,30,19,34],[10,21,10,27],[12,21,12,34],[15,21,15,34],[13,21,14,34],[16,21,17,34],[11,21,11,23],[11,25,11,27],[27,21,27,27],[27,28,27,34],[21,21,21,24],[21,26,21,29],[21,31,21,34],[26,21,26,27],[24,21,24,34],[26,28,26,34],[25,21,25,34],[22,21,22,34],[23,21,23,24],[23,26,23,29],[23,31,23,34],[6,21,6,25],[7,21,7,22],[8,21,8,22],[9,21,9,22],[7,23,7,25],[8,23,8,25],[9,23,9,25],[1,0,1,17],[14,11,14,13],[15,11,15,13],[14,15,14,17],[8,6,9,16],[3,12,3,13],[3,15,3,16],[3,6,3,10],[12,6,12,9],[12,10,12,16],[7,9,7,10],[7,6,7,8],[7,11,7,14],[14,6,14,9],[15,6,15,9],[39,0,39,17],[21,0,21,17],[10,6,11,16],[15,15,15,17],[13,6,13,16],[19,0,20,17],[38,0,38,1]]}
["様式第１"]
["経営革新計画に係る承認申請書"]
[]
[null,null,null,null,null,null,{"$f":"ASC(X8)","v":""},null,null,null,null,"年",{"$f":"ASC(X9)","v":""},null,"月",{"$f":"ASC(X10)","v":""},null,"日"]
[]
["長野県知事（地域振興局長）　様"]
[null,null,null,null,null,null,null,null,null,null,null,null,null,null,null,null,null,null,null,null,null,"日　付"]
[null,null,null,null,null,"（郵便番号",{"$f":"ASC(V12)","v":""},null,null,"―",null,{"$f":"ASC(Z12)","v":""},null,null,null,"）",null,null,null,null,"（西暦）","年"]
[null,null,null,"　",null,"住　　　　所",{"$f":"ASC(V14)","v":""},null,null,null,null,null,null,null,null,null,null,null,null,null,null,"月"]
[null,null,null,null,null,null,null,null,null,null,null,null,null,null,null,null,null,null,null,null,null,"日"]
[null,null,null,null,null,"名称及び",{"$f":"ASC(V17)","v":""},null,null,null,null,null,null,null,null,null,null,null,null,null,null,"郵便番号"]
[null,null,null,null,null,null,null,null,null,null,null,null,null,null,null,null,null,null,null,null,null,null,null,null,"－"]
[null,null,null,null,null,"代表者の氏名",{"$f":"ASC(X20)","v":""},null,null,null,{"$f":"DBCS(AE20)","v":""},null,null,null,null,null,null,null,null,null,null,"住　所"]
[]
[null,null,null,null,null,"（電話番号",{"$f":"ASC(V22)","v":""},null,null,null,"―",{"$f":"ASC(AA22)","v":""},null,null,"―",{"$f":"ASC(AF22)","v":""},null,null,"）"]
[null,null,null,null,null,"（ファックス番号",{"$f":"ASC(V24)","v":""},null,null,null,"―",{"$f":"ASC(AA24)","v":""},null,null,"―",{"$f":"ASC(AF24)","v":""},null,null,"）",null,null,"名　称"]
[]
[]
[null,null,null,null,null,null,null,null,null,null,null,null,null,null,null,null,null,null,null,null,null,"代表者の氏名"]
["　中小企業等経営強化法第１４条第１項の規定に基づき、別紙の計画について承認を受けたいので申請します。",null,null,null,null,null,null,null,null,null,null,null,null,null,null,null,null,null,null,null,null,"役職名",null,null,null,null,null,"氏　名"]
[null,null,null,null,null,null,null,null,null,null,null,null,null,null,null,null,null,null,null,null,null,"電話番号"]
[null,null,null,null,null,null,null,null,null,null,null,null,null,null,null,null,null,null,null,null,null,null,null,null,null,"－",null,null,null,null,"－"]
[null,null,null,null,null,null,null,null,null,null,null,null,null,null,null,null,null,null,null,null,null,"ＦＡＸ"]
[null,null,null,null,null,null,null,null,null,null,null,null,null,null,null,null,null,null,null,null,null,null,null,null,null,"－",null,null,null,null,"－"]
[null,null,null,null,null,null,null,null,null,null,null,null,null,null,null,null,null,null,null,null,null,"業　種"]
[]
[null,null,null,null,null,null,null,null,null,null,null,null,null,null,null,null,null,null,null,null,null,"資本金（千円）",null,null,null,null,null,null,"法人番号"]
[]
[]
[]
[]
[]
[]
[]
[]
[]
[]
[]
["（備考）"]
["   用紙の大きさは、日本産業規格Ａ４とする。"]

{"sheet":"別表１","index":1,"n_rows":35,"n_cols":24,"rows_kept":35,"cut":false,"hidden":false,"merged":[[3,15,4,18],[34,3,34,4],[32,7,32,13],[33,3,33,4],[17,3,17,5],[13,3,13,5],[31,6,32,6],[20,2,20,7],[20,8,20,13],[14,3,14,5],[30,7,30,13],[15,3,15,5],[30,5,30,6],[16,3,16,5],[33,7,33,13],[34,7,34,13],[0,2,0,3],[5,2,5,13],[10,2,10,5],[10,6,10,13],[2,2,2,13],[3,11,3,13],[4,11,4,13],[3,2,3,4],[4,2,4,4],[3,5,3,7],[4,5,4,6],[3,8,3,10],[4,8,4,10],[6,2,9,13],[11,6,11,8],[12,6,18,13],[11,9,11,12],[11,2,12,5],[30,2,30,4],[18,3,18,5],[31,7,31,13],[31,3,32,4],[31,5,32,5],[19,2,19,13],[31,2,32,2],[21,2,21,13],[26,2,26,13],[23,2,25,13],[22,2,22,13],[27,2,29,13]]}
[null,null,"（別表１）"]
[null,null,"経営革新計画"]
[null,null,"申請者名・資本金・業種・法人番号"]
[null,null,"申請者名　:",null,null,{"$f":"IF(申請書!G11=\"\",\"\",申請書!G11)","v":""},null,null,"業　　種　　:",null,null,{"$f":"IF(申請書!V26=\"\",\"\",申請書!V26)","v":""},null,null,null,"別シート「申請書」の企業情報が自動反映"]
[null,null,"資 本 金　:",null,null,{"$f":"申請書!V28","v":0},null,"千円","法人番号　　:",null,null,{"$f":"ASC(申請書!AC28)","v":""}]
[null,null,"実施体制"]
[false]
[false]
[false]
[false]
[false,null,"新事業活動の類型",null,null,null,"経営革新の目標（計画のポイントを記載する）"]
[false,null,"計画の対象となる類型全てに丸印を付ける。",null,null,null,"経営革新計画のテーマ："]
[]
[null,null,{"$f":"IF(A7=TRUE,\"①.\",\"１.\")","v":"１."},"新商品の開発又は生産"]
[null,null,{"$f":"IF(A8=TRUE,\"②.\",\"２.\")","v":"２."},"新役務の開発又は提供"]
[null,null,{"$f":"IF(A9=TRUE,\"③.\",\"３.\")","v":"３."},"商品の新たな生産又は販売の方式\nの導入"]
[null,null,{"$f":"IF(A10=TRUE,\"④.\",\"４.\")","v":"４."},"役務の新たな提供の方式の導入"]
[null,null,{"$f":"IF(A11=TRUE,\"⑤.\",\"５.\")","v":"５."},"技術に関する研究開発及びその成\n果の利用"]
[null,null,{"$f":"IF(A12=TRUE,\"⑥.\",\"６.\")","v":"６."},"その他の新たな事業活動"]
[null,null,"計画期間又は事業期間：　　　年　　月　～　　　年　　月"]
[null,null,"研究開発期間：　　　年　　月　～　　　年　　月",null,null,null,null,null," 事業期間：　　　年　　月　～　　　年　　月"]
[null,null,"経営革新の実施に係る内容"]
[null,null,"１　当社の現状と経営課題"]
[]
[]
[]
[null,null,"２　経営革新の具体的内容（既存事業との相違点、経営戦略における位置づけ等）"]
[]
[]
[]
[null,null,"経営の向上の　　　　　　　　　　程度を示す指標",null,null,"現  状（千円）",null,"計画終了時の目標伸び率（％）\n（事業期間終了時点）",null,null,null,null,null,null,null,null,null,null,null,null,null,null,"計算算定"]
[null,null,1,"付加価値額",null,{"$f":"別表３!F22","v":0},"千円",{"$f":"IF(F32=0,\"－－－\",IF(F32<0,ROUND((W32-F32)/ABS(F32),3),ROUND((W32-F32)/F32,3)))","v":"－－－"},null,null,null,null,null,null,null,null,null,null,null,null,null,"付加価値額",{"$f":"IF(別表３!N22=0,IF(別表３!M22=0,IF(別表３!L22=0,IF(別表３!K22=0,IF(別表３!J22=0,別表３!I22,別表３!J22),別表３!K22),別表３!L22),別表３!M22),別表３!N22)","v":0}]
[null,null,null,null,null,null,null,"（　　年　　月～　　年　　月（事業期間　　年））",null,null,null,null,null,null,null,null,null,null,null,null,null,"一人当たりの付加価値額",{"$f":"IF(別表３!N25=\"\",IF(別表３!M25=\"\",IF(別表３!L25=\"\",IF(別表３!K25=\"\",IF(別表３!J23=\"\",別表３!I25,別表３!J25),別表３!K25),別表３!L25),別表３!M25),別表３!N25)","v":0},"千円"]
[null,null,2,"一人当たりの\n付加価値額",null,{"$f":"別表３!F25","v":0},"千円",{"$f":"IF(F34=0,\"－－－\",IF(F34<0,ROUND((W33-F34)/ABS(F34),3),ROUND((W33-F34)/F34,3)))","v":"－－－"},null,null,null,null,null,null,null,null,null,null,null,null,null,"給与支給総額",{"$f":"IF(別表３!N15=0,IF(別表３!M15=0,IF(別表３!L15=0,IF(別表３!K15=0,IF(別表３!J15=0,別表３!I15,別表３!J15),別表３!K15),別表３!L15),別表３!M15),別表３!N15)","v":0},"千円"]
[null,null,3,"給与支給総額",null,{"$f":"別表３!F15","v":0},"千円",{"$f":"IF(F35=0,\"－－－\",IF(F35<0,ROUND((W34-F35)/ABS(F35),3),ROUND((W34-F35)/F35,3)))","v":"－－－"}]

{"sheet":"別表２","index":2,"n_rows":5,"n_cols":8,"rows_kept":5,"cut":false,"hidden":false,"merged":[[24,4,24,8],[1,0,1,6],[2,0,4,0],[2,1,2,4],[2,5,2,7],[3,1,4,1],[3,2,4,2],[3,6,4,6],[3,7,4,7]]}
["（別表２）"]
["実施計画と実績（実績欄は申請段階では記載する必要はない。）"]
["番号","計　　　　画",null,null,null,"実　　　　績"]
[null,"実　施　項　目","評価基準","評価","実施","実施","効果","対策"]
[null,null,null,"頻度","時期","状況"]

{"sheet":"別表３","index":3,"n_rows":41,"n_cols":22,"rows_kept":41,"cut":false,"hidden":false,"merged":[[8,15,9,18],[12,15,12,18],[38,0,38,8],[38,9,38,10],[21,11,22,11],[21,12,22,12],[21,13,22,13],[14,0,14,2],[25,15,25,20],[26,15,26,20],[21,9,22,9],[21,10,22,10],[23,0,23,2],[21,4,22,4],[21,5,22,5],[21,6,22,6],[8,11,9,11],[8,12,9,12],[8,13,9,13],[10,11,11,11],[10,12,11,12],[10,13,11,13],[8,3,9,3],[10,8,11,8],[8,8,9,8],[8,4,9,4],[10,6,11,6],[10,3,11,3],[10,4,11,4],[8,5,9,5],[10,10,11,10],[8,6,9,6],[10,9,11,9],[8,10,9,10],[10,5,11,5],[8,9,9,9],[0,0,0,2],[20,0,20,2],[18,0,19,0],[10,7,11,7],[8,7,9,7],[9,0,9,2],[4,0,5,2],[6,0,6,2],[7,0,7,2],[8,0,8,2],[13,0,13,2],[12,0,12,2],[10,0,10,2],[11,0,11,2],[18,1,18,2],[2,3,2,5],[40,7,40,8],[21,3,22,3],[24,0,24,2],[25,0,28,1],[22,0,22,2],[21,8,22,8],[32,7,32,8],[29,0,29,2],[21,0,21,2],[21,7,22,7],[20,15,22,19],[24,15,24,18],[29,15,29,18],[19,1,19,2],[15,0,15,2],[16,0,16,2],[17,0,17,2]]}
["（別表３）"]
["経営計画及び資金計画"]
["参加特定事業者名　　　　　　　　　　　　",null,null,{"$f":"IF(申請書!G11=\"\",\"\",申請書!G11)","v":""},null,null,null,null,null,null,"（単位　千円）"]
[]
[null,null,null,"２年前","１年前","直近期末","１年後","２年後","３年後","４年後","５年後","６年後","７年後","８年後"]
[null,null,null,{"$f":"IF($F$6>=1,E6-365,\"-\")","v":"-"},{"$f":"IF($F$6>=1,F6-365,\"-\")","v":"-"},null,{"$f":"IF($F$6>=1,F6+366,\"-\")","v":"-"},{"$f":"IF($F$6>=1,G6+366,\"-\")","v":"-"},"-","-","-","-","-","-"]
["①売上高　"]
["②売上原価"]
["③売上総利益",null,null,{"$f":"D7-D8","v":0},0,0,0,0,0,0,0,0,0,0,null,"ここに式が入っているので入力不要"]
["（①－②）"]
["④販売費及び"]
["　一般管理費",null,null,null,null,null,null,null,null,null,null,null,null,null,null,"　"]
["⑤営業利益",null,null,{"$f":"D9-D11","v":0},{"$f":"E9-E11","v":0},0,0,0,{"$f":"I9-I11","v":0},0,0,{"$f":"L9-L11","v":0},{"$f":"M9-M11","v":0},{"$f":"N9-N11","v":0},null,"ここに式が入っているので入力不要"]
["⑥経常利益"]
["⑦給与支給総額"]
["⑧人件費"]
["⑨設備投資額",null,null,"－","－","－"]
["⑩運転資金",null,null,"－","－","－"]
[null,"普通償却額"]
[null,"特別償却額"]
["⑪減価償却費",null,null,{"$f":"SUM(D19:D20)","v":0},0,0,0,0,0,0,0,{"$f":"SUM(L19:L20)","v":0},{"$f":"SUM(M19:M20)","v":0},{"$f":"SUM(N19:N20)","v":0},null,"　ここに式が入っているので入力不要"]
["⑫付加価値額",null,null,{"$f":"D13+D16+D21","v":0},0,0,0,0,0,0,0,0,0,0]
["（⑤＋⑧＋⑪）"]
["⑬従業員数"]
["⑭一人当たりの　　　　　　　　　　　　付加価値額(⑫÷⑬)",null,null,{"$f":"IF(D24=\"\",0,ROUNDDOWN(D22/D24,0))","v":0},{"$f":"IF(E24=\"\",0,ROUNDDOWN(E22/E24,0))","v":0},0,0,0,0,0,0,0,0,0,null,"　ここに式が入っているので入力不要"]
["⑮資金調達額（⑨＋⑩）",null,"政府系金融　　　　　　　　機関借入","－","－","－"]
[null,null,"民間金融　　　　　　　　機関借入","－","－","－",null,null,null,null,null,null,null,null,null,null,null,null,null,null,null,"　　　　ここに式が入っているので注意"]
[null,null,"自己資金","－","－","－"]
[null,null,"その他","－","－","－"]
["合　計",null,null,"－","－","－",{"$f":"IF(SUM(G26:G29)=G17+G18,SUM(G26:G29),\"合計が合いません\")","v":0},{"$f":"IF(SUM(H26:H29)=H17+H18,SUM(H26:H29),\"合計が合いません\")","v":0},0,0,0,0,0,0,null,"ここに式が入っているので入力不要"]
[]
["（各種指標の算出方法）"]
["・「給与支給総額」：給与+賃金+賞与+各種手当"]
["・「付加価値額」：営業利益+人件費+減価償却費"]
["・「一人当たりの付加価値額」：付加価値額÷従業員数"]
["・「営業利益」：売上総利益（売上高－売上原価）－販売費及び一般管理費"]
[]
["（算出時における留意点）"]
["・人数、人件費に短時間労働者、派遣労働者に対する費用を算入しましたか。",null,null,null,null,null,null,null,null,"（ はい ・ いいえ ）"]
["・減価償却費にリース費用を算入しましたか。",null,null,null,null,null,"（ はい ・ いいえ ）"]
["・従業員数について就業時間による調整を行いましたか。",null,null,null,null,null,null,"（ はい ・ いいえ ）"]

{"sheet":"別表４","index":4,"n_rows":25,"n_cols":9,"rows_kept":25,"cut":false,"hidden":false,"merged":[[24,0,24,6],[16,8,23,8],[2,8,2,14],[16,0,16,4],[7,1,7,2],[8,1,8,2],[9,1,9,2],[10,1,10,2],[22,1,22,2],[14,0,14,6],[13,1,13,2],[23,1,23,2],[18,1,18,2],[19,1,19,2],[20,1,20,2],[21,1,21,2],[0,0,0,1],[1,0,1,1],[11,1,11,2],[12,1,12,2],[3,1,3,2],[4,1,4,2],[5,1,5,2],[6,1,6,2]]}
["（別表４）"]
["参加特定事業者名　　　　　　　　　　　",null,{"$f":"IF(申請書!G11=\"\",\"\",申請書!G11)","v":""}]
["設備投資計画（経営革新計画に係るもの）",null,null,null,null,null,"（単位　千円）"]
[null,"機械装置名称",null,"導入年度","単　　価","数　量","合　計　金　額"]
[1]
[2,null,null,null,null,null,{"$f":"IF(AND(E6=\"\",F6=\"\"),\"\",E6*F6)","v":""}]
[3,null,null,null,null,null,""]
[4,null,null,null,null,null,""]
[5,null,null,null,null,null,""]
[6,null,null,null,null,null,""]
[7,null,null,null,null,null,""]
[8,null,null,null,null,null,""]
[9,null,null,null,null,null,""]
[10,null,null,null,null,null,{"$f":"IF(AND(E14=\"\",F14=\"\"),\"\",E14*F14)","v":""}]
[{"$f":"IF(SUM(G5:G14)>SUM(別表３!G17:N17),\"別表3の設備投資額を上回っています\",\"\")","v":""},null,null,null,null,null,null,null,"別表③の設備投資額を超えるとエラーメッセージが表示されます"]
[]
["運転資金計画（経営革新計画に係るもの）"]
[null,null,"（単位　千円）"]
["年度","金　　額"]
[]
[]
[]
[]
[]
[{"$f":"IF(SUM(B20:C24)>SUM(別表３!G18:N18),\"別表3の運転資金額を上回っています\",\"\")","v":""},null,null,null,null,null,null,null,"別表③の設備投資額を超えるとエラーメッセージが表示されます"]

{"sheet":"別表５","index":5,"n_rows":12,"n_cols":6,"rows_kept":12,"cut":false,"hidden":false,"merged":[[2,1,3,5]]}
[]
[null,"（別表５）"]
[null,"　組合等が研究開発等事業に係る試験研究費に充てるためその構成員に対して賦課しようとする負担金の賦課の基準"]
[]
[]
[null,null,null,null,null,"（単位　千円）"]
[null,"試験研究の名称","年度","賦課基準","負担金の合計\n及びその積算根拠","構成員別の賦課金額\n及びその積算根拠"]
[null,1]
[null,2]
[null,3]
[null,4]
[null,5]

{"sheet":"別表６","index":6,"n_rows":16,"n_cols":11,"rows_kept":16,"cut":false,"hidden":false,"merged":[[4,1,5,15],[7,10,7,15],[8,10,8,15],[9,10,9,15],[10,10,10,15],[9,1,9,9],[7,1,7,9],[8,1,8,9],[10,1,10,9],[13,2,13,9],[12,2,12,9],[11,1,11,9],[11,10,11,15],[12,10,12,15],[13,10,13,15]]}
[]
[null,"（別表６）"]
[null,"関係機関への連絡希望について"]
[]
[null,"　計画が承認された場合に、当該承認を受けた計画の内容について下記関係機関に送付することを希望する場合には、該当箇所に〇を記入してください。"]
[]
[]
[null,"承認書類の送付を希望する機関名",null,null,null,null,null,null,null,null,"送付の希望の有・無"]
[null,"中小企業投資育成株式会社",null,null,null,null,null,null,null,null,"有　　・　　無"]
[null,"長野県信用保証協会",null,null,null,null,null,null,null,null,"有　　・　　無"]
[null,"長野県中小企業振興センター",null,null,null,null,null,null,null,null,"有　　・　　無"]
[null,"株式会社日本政策金融公庫\n　（申請書式作成の際には、具体的な支店を正式名称で記載すること。）"]
[null,null,"　　　　　中小企業事業　　　　　　　　　　　　　　　　　　　　支店",null,null,null,null,null,null,null,"有　　・　　無"]
[null,null,"　　　　　国民生活事業　　　　　　　　　　　　　　　　　　　　支店",null,null,null,null,null,null,null,"有　　・　　無"]
[]
[null,"※この様式は、それぞれの支援施策を約束するものではありません。"]

{"sheet":"別表７","index":7,"n_rows":23,"n_cols":10,"rows_kept":23,"cut":false,"hidden":false,"merged":[[22,9,22,14],[20,9,20,14],[18,9,18,14],[16,9,16,14],[14,9,14,14],[13,3,13,8],[14,3,14,8],[15,3,15,8],[23,3,23,8],[22,3,22,8],[16,3,16,8],[17,3,17,8],[18,3,18,8],[19,3,19,8],[20,3,20,8],[21,3,21,8],[12,9,12,14],[4,1,5,15],[7,4,7,8],[10,3,10,8],[11,3,11,8],[12,3,12,8],[10,9,10,14],[7,0,7,3]]}
[]
[null,"（別表７）"]
[]
[null,"中小企業経営革新事例集の作成に関するお願い"]
[null,"　「経営革新計画」が承認された場合、記載内容を事例集等により公表してよろしいでしょうか。以下の該当する項目に〇印をしてください。"]
[]
[]
["参加特定事業者名",null,null,null,{"$f":"IF(申請書!G11=\"\",\"\",申請書!G11)","v":""}]
[]
[]
[null,null,null,"①　企　業　名",null,null,null,null,null,"（　可　　・　　否　）"]
[]
[null,null,null,"②　代　表　者　名",null,null,null,null,null,"（　可　　・　　否　）"]
[]
[null,null,null,"③　資　本　金",null,null,null,null,null,"（　可　　・　　否　）"]
[]
[null,null,null,"④　従　業　員　数",null,null,null,null,null,"（　可　　・　　否　）"]
[]
[null,null,null,"⑤　所　在　地",null,null,null,null,null,"（　可　　・　　否　）"]
[]
[null,null,null,"⑥　電　話　番　号",null,null,null,null,null,"（　可　　・　　否　）"]
[]
[null,null,null,"⑦　経営革新計画の概要",null,null,null,null,null,"（　可　　・　　否　）"]

{"sheet":"業種一覧","index":8,"n_rows":543,"n_cols":9,"rows_kept":543,"cut":false,"hidden":true,"merged":[[7,8,8,8],[1,0,4,2],[534,5,534,7],[535,5,535,7],[536,5,536,7],[526,5,526,7],[527,5,527,7],[528,5,528,7],[529,5,529,7],[530,5,530,7],[531,5,531,7],[522,5,522,7],[523,5,523,7],[524,5,524,7],[525,5,525,7],[532,5,532,7],[533,5,533,7],[511,5,511,7],[512,5,512,7],[513,5,513,7],[514,5,514,7],[515,5,515,7],[516,5,516,7],[493,5,493,7],[494,5,494,7],[520,5,520,7],[521,5,521,7],[495,5,495,7],[496,5,496,7],[497,5,497,7],[498,5,498,7],[499,5,499,7],[500,5,500,7],[501,5,501,7],[502,5,502,7],[503,5,503,7],[517,5,517,7],[518,5,518,7],[519,5,519,7],[504,5,504,7],[505,5,505,7],[506,5,506,7],[507,5,507,7],[508,5,508,7],[509,5,509,7],[510,5,510,7],[484,5,484,7],[485,5,485,7],[486,5,486,7],[487,5,487,7],[488,5,488,7],[489,5,489,7],[490,5,490,7],[491,5,491,7],[492,5,492,7],[475,5,475,7],[476,5,476,7],[477,5,477,7],[478,5,478,7],[479,5,479,7],[480,5,480,7],[481,5,481,7],[482,5,482,7],[483,5,483,7],[466,5,466,7],[467,5,467,7],[468,5,468,7],[469,5,469,7],[470,5,470,7],[471,5,471,7],[472,5,472,7],[473,5,473,7],[474,5,474,7],[457,5,457,7],[458,5,458,7],[459,5,459,7],[460,5,460,7],[461,5,461,7],[462,5,462,7],[463,5,463,7],[464,5,464,7],[465,5,465,7],[448,5,448,7],[449,5,449,7],[450,5,450,7],[451,5,451,7],[452,5,452,7],[453,5,453,7],[454,5,454,7],[455,5,455,7],[456,5,456,7],[439,5,439,7],[440,5,440,7],[441,5,441,7],[442,5,442,7],[443,5,443,7],[444,5,444,7],[445,5,445,7],[446,5,446,7],[447,5,447,7],[430,5,430,7],[431,5,431,7],[432,5,432,7],[433,5,433,7],[434,5,434,7],[435,5,435,7],[436,5,436,7],[437,5,437,7],[438,5,438,7],[421,5,421,7],[422,5,422,7],[423,5,423,7],[424,5,424,7],[425,5,425,7],[426,5,426,7],[427,5,427,7],[428,5,428,7],[429,5,429,7],[412,5,412,7],[413,5,413,7],[414,5,414,7],[415,5,415,7],[416,5,416,7],[417,5,417,7],[418,5,418,7],[419,5,419,7],[420,5,420,7],[403,5,403,7],[404,5,404,7],[405,5,405,7],[406,5,406,7],[407,5,407,7],[408,5,408,7],[409,5,409,7],[410,5,410,7],[411,5,411,7],[394,5,394,7],[395,5,395,7],[396,5,396,7],[397,5,397,7],[398,5,398,7],[399,5,399,7],[400,5,400,7],[401,5,401,7],[402,5,402,7],[385,5,385,7],[386,5,386,7],[387,5,387,7],[388,5,388,7],[389,5,389,7],[390,5,390,7],[391,5,391,7],[392,5,392,7],[393,5,393,7],[376,5,376,7],[377,5,377,7],[378,5,378,7],[379,5,379,7],[380,5,380,7],[381,5,381,7],[382,5,382,7],[383,5,383,7],[384,5,384,7],[367,5,367,7],[368,5,368,7],[369,5,369,7],[370,5,370,7],[371,5,371,7],[372,5,372,7],[373,5,373,7],[374,5,374,7],[375,5,375,7],[358,5,358,7],[359,5,359,7],[360,5,360,7],[361,5,361,7],[362,5,362,7],[363,5,363,7],[364,5,364,7],[365,5,365,7],[366,5,366,7],[349,5,349,7],[350,5,350,7],[351,5,351,7],[352,5,352,7],[353,5,353,7],[354,5,354,7],[355,5,355,7],[356,5,356,7],[357,5,357,7],[340,5,340,7],[341,5,341,7],[342,5,342,7],[343,5,343,7],[344,5,344,7],[345,5,345,7],[346,5,346,7],[347,5,347,7],[348,5,348,7],[331,5,331,7],[332,5,332,7],[333,5,333,7],[334,5,334,7],[335,5,335,7],[336,5,336,7],[337,5,337,7],[338,5,338,7],[339,5,339,7],[322,5,322,7],[323,5,323,7],[324,5,324,7],[325,5,325,7],[326,5,326,7],[327,5,327,7],[328,5,328,7],[329,5,329,7],[330,5,330,7],[313,5,313,7],[314,5,314,7],[315,5,315,7],[316,5,316,7],[317,5,317,7],[318,5,318,7],[319,5,319,7],[320,5,320,7],[321,5,321,7],[304,5,304,7],[305,5,305,7],[306,5,306,7],[307,5,307,7],[308,5,308,7],[309,5,309,7],[310,5,310,7],[311,5,311,7],[312,5,312,7],[295,5,295,7],[296,5,296,7],[297,5,297,7],[298,5,298,7],[299,5,299,7],[300,5,300,7],[301,5,301,7],[302,5,302,7],[303,5,303,7],[286,5,286,7],[287,5,287,7],[288,5,288,7],[289,5,289,7],[290,5,290,7],[291,5,291,7],[292,5,292,7],[293,5,293,7],[294,5,294,7],[277,5,277,7],[278,5,278,7],[279,5,279,7],[280,5,280,7],[281,5,281,7],[282,5,282,7],[283,5,283,7],[284,5,284,7],[285,5,285,7],[268,5,268,7],[269,5,269,7],[270,5,270,7],[271,5,271,7],[272,5,272,7],[273,5,273,7],[274,5,274,7],[275,5,275,7],[276,5,276,7],[259,5,259,7],[260,5,260,7],[261,5,261,7],[262,5,262,7],[263,5,263,7],[264,5,264,7],[265,5,265,7],[266,5,266,7],[267,5,267,7],[250,5,250,7],[251,5,251,7],[252,5,252,7],[253,5,253,7],[254,5,254,7],[255,5,255,7],[256,5,256,7],[257,5,257,7],[258,5,258,7],[241,5,241,7],[242,5,242,7],[243,5,243,7],[244,5,244,7],[245,5,245,7],[246,5,246,7],[247,5,247,7],[248,5,248,7],[249,5,249,7],[232,5,232,7],[233,5,233,7],[234,5,234,7],[235,5,235,7],[236,5,236,7],[237,5,237,7],[238,5,238,7],[239,5,239,7],[240,5,240,7],[223,5,223,7],[224,5,224,7],[225,5,225,7],[226,5,226,7],[227,5,227,7],[228,5,228,7],[229,5,229,7],[230,5,230,7],[231,5,231,7],[214,5,214,7],[215,5,215,7],[216,5,216,7],[217,5,217,7],[218,5,218,7],[219,5,219,7],[220,5,220,7],[221,5,221,7],[222,5,222,7],[205,5,205,7],[206,5,206,7],[207,5,207,7],[208,5,208,7],[209,5,209,7],[210,5,210,7],[211,5,211,7],[212,5,212,7],[213,5,213,7],[464,0,478,0],[464,1,472,1],[464,2,472,2],[473,1,478,1],[473,2,478,2],[479,0,496,0],[479,1,485,1],[479,2,485,2],[486,1,489,1],[486,2,489,2],[490,1,496,1],[490,2,496,2],[400,0,422,0],[400,1,402,1],[400,2,402,2],[403,1,412,1],[403,2,412,2],[413,1,414,1],[413,2,414,2],[415,1,422,1],[415,2,422,2],[276,1,280,1],[276,2,280,2],[281,1,283,1],[281,2,283,2],[301,1,303,1],[301,2,303,2],[304,1,310,1],[304,2,310,2],[311,1,315,1],[311,2,315,2],[295,1,296,1],[295,2,296,2],[297,1,300,1],[297,2,300,2],[243,0,262,0],[254,1,255,1],[254,2,255,2],[256,1,262,1],[256,2,262,2],[263,0,294,0],[263,1,264,1],[263,2,264,2],[265,1,269,1],[265,2,269,2],[243,1,246,1],[243,2,246,2],[247,1,250,1],[247,2,250,2],[251,1,253,1],[251,2,253,2],[270,1,275,1],[270,2,275,2],[284,1,286,1],[284,2,286,2],[287,1,292,1],[287,2,292,2],[293,1,294,1],[293,2,294,2],[233,0,242,0],[233,1,234,1],[233,2,234,2],[235,1,236,1],[235,2,236,2],[237,1,238,1],[237,2,238,2],[239,1,242,1],[239,2,242,2],[192,5,192,7],[193,5,193,7],[194,5,194,7],[195,5,195,7],[196,0,232,0],[196,1,202,1],[196,2,202,2],[203,1,211,1],[203,2,211,2],[212,1,215,1],[212,2,215,2],[216,1,222,1],[216,2,222,2],[223,1,232,1],[223,2,232,2],[196,5,196,7],[197,5,197,7],[198,5,198,7],[199,5,199,7],[200,5,200,7],[201,5,201,7],[202,5,202,7],[203,5,203,7],[204,5,204,7],[183,5,183,7],[184,5,184,7],[185,5,185,7],[186,5,186,7],[187,5,187,7],[188,5,188,7],[189,5,189,7],[190,5,190,7],[191,5,191,7],[174,5,174,7],[175,5,175,7],[176,5,176,7],[177,5,177,7],[178,5,178,7],[179,5,179,7],[180,5,180,7],[181,5,181,7],[182,5,182,7],[165,5,165,7],[166,5,166,7],[167,5,167,7],[168,5,168,7],[169,5,169,7],[170,5,170,7],[171,5,171,7],[172,5,172,7],[173,5,173,7],[156,5,156,7],[157,5,157,7],[158,5,158,7],[159,5,159,7],[160,5,160,7],[161,5,161,7],[162,5,162,7],[163,5,163,7],[164,5,164,7],[147,5,147,7],[148,5,148,7],[149,5,149,7],[150,5,150,7],[151,5,151,7],[152,5,152,7],[153,5,153,7],[154,5,154,7],[155,5,155,7],[138,5,138,7],[139,5,139,7],[140,5,140,7],[141,5,141,7],[142,5,142,7],[143,5,143,7],[144,5,144,7],[145,5,145,7],[146,5,146,7],[129,5,129,7],[130,5,130,7],[131,5,131,7],[132,5,132,7],[133,5,133,7],[134,5,134,7],[135,5,135,7],[136,5,136,7],[137,5,137,7],[120,5,120,7],[121,5,121,7],[122,5,122,7],[123,5,123,7],[124,5,124,7],[125,5,125,7],[126,5,126,7],[127,5,127,7],[128,5,128,7],[180,1,188,1],[180,2,188,2],[189,1,195,1],[189,2,195,2],[100,5,100,7],[101,5,101,7],[102,5,102,7],[103,5,103,7],[104,5,104,7],[105,5,105,7],[106,5,106,7],[107,5,107,7],[108,5,108,7],[109,5,109,7],[110,5,110,7],[111,5,111,7],[112,5,112,7],[113,5,113,7],[114,5,114,7],[115,5,115,7],[116,5,116,7],[117,5,117,7],[118,5,118,7],[119,5,119,7],[99,5,99,7],[100,0,195,0],[100,1,104,1],[100,2,104,2],[105,1,112,1],[105,2,112,2],[113,1,118,1],[113,2,118,2],[119,1,125,1],[119,2,125,2],[126,1,130,1],[126,2,130,2],[131,1,140,1],[131,2,140,2],[141,1,150,1],[141,2,150,2],[151,1,157,1],[151,2,157,2],[158,1,164,1],[158,2,164,2],[165,1,174,1],[165,2,174,2],[175,1,179,1],[175,2,179,2],[90,5,90,7],[91,5,91,7],[92,5,92,7],[93,5,93,7],[94,5,94,7],[95,5,95,7],[96,5,96,7],[97,5,97,7],[98,5,98,7],[81,5,81,7],[82,5,82,7],[83,5,83,7],[84,5,84,7],[85,5,85,7],[86,5,86,7],[87,5,87,7],[88,5,88,7],[89,5,89,7],[72,5,72,7],[73,5,73,7],[74,5,74,7],[75,5,75,7],[76,5,76,7],[77,5,77,7],[78,5,78,7],[79,5,79,7],[80,5,80,7],[63,5,63,7],[64,5,64,7],[65,5,65,7],[66,5,66,7],[67,5,67,7],[68,5,68,7],[69,5,69,7],[70,5,70,7],[71,5,71,7],[54,5,54,7],[55,5,55,7],[56,5,56,7],[57,5,57,7],[58,5,58,7],[59,5,59,7],[60,5,60,7],[61,5,61,7],[62,5,62,7],[45,5,45,7],[46,5,46,7],[47,5,47,7],[48,5,48,7],[49,5,49,7],[50,5,50,7],[51,5,51,7],[52,5,52,7],[53,5,53,7],[36,5,36,7],[37,5,37,7],[38,5,38,7],[39,5,39,7],[40,5,40,7],[41,5,41,7],[42,5,42,7],[43,5,43,7],[44,5,44,7],[27,5,27,7],[28,5,28,7],[29,5,29,7],[30,5,30,7],[31,5,31,7],[32,5,32,7],[33,5,33,7],[34,5,34,7],[35,5,35,7],[7,5,8,7],[9,5,9,7],[22,5,22,7],[23,5,23,7],[24,5,24,7],[25,5,25,7],[26,5,26,7],[16,5,16,7],[17,5,17,7],[18,5,18,7],[19,5,19,7],[20,5,20,7],[21,5,21,7],[10,5,10,7],[11,5,11,7],[12,5,12,7],[13,5,13,7],[14,5,14,7],[15,5,15,7],[56,0,99,0],[56,1,65,1],[56,2,65,2],[66,1,72,1],[66,2,72,2],[73,1,82,1],[73,2,82,2],[83,1,87,1],[83,2,87,2],[88,1,92,1],[88,2,92,2],[93,1,99,1],[93,2,99,2],[20,0,25,0],[20,1,22,1],[20,2,22,2],[23,1,25,1],[23,2,25,2],[26,0,32,0],[26,1,32,1],[26,2,32,2],[33,0,55,0],[33,1,39,1],[33,2,39,2],[40,1,49,1],[40,2,49,2],[50,1,55,1],[50,2,55,2],[7,0,8,0],[7,2,8,2],[7,3,8,3],[7,4,8,4],[9,0,19,0],[9,1,13,1],[9,2,13,2],[14,1,19,1],[14,2,19,2],[295,0,360,0],[321,1,328,1],[321,2,328,2],[329,1,334,1],[329,2,334,2],[335,1,342,1],[335,2,342,2],[343,1,346,1],[343,2,346,2],[347,1,356,1],[347,2,356,2],[357,1,360,1],[357,2,360,2],[316,1,320,1],[316,2,320,2],[372,2,374,2],[375,1,378,1],[375,2,378,2],[379,1,384,1],[379,2,384,2],[385,0,399,0],[385,1,387,1],[385,2,387,2],[388,1,392,1],[388,2,392,2],[393,1,399,1],[393,2,399,2],[361,0,384,0],[361,1,363,1],[361,2,363,2],[364,1,366,1],[364,2,366,2],[367,1,371,1],[367,2,371,2],[372,1,374,1],[423,1,427,1],[423,2,427,2],[428,1,436,1],[428,2,436,2],[437,1,440,1],[437,2,440,2],[441,0,463,0],[441,1,447,1],[441,2,447,2],[448,1,455,1],[448,2,455,2],[456,1,463,1],[456,2,463,2],[423,0,440,0],[497,0,502,0],[497,1,499,1],[497,2,499,2],[500,1,502,1],[500,2,502,2],[503,0,536,0],[503,1,506,1],[503,2,506,2],[507,1,508,1],[507,2,508,2],[509,1,513,1],[509,2,513,2],[514,1,516,1],[514,2,516,2],[517,1,521,1],[517,2,521,2],[522,1,526,1],[522,2,526,2],[527,1,530,1],[527,2,530,2],[531,1,534,1],[531,2,534,2],[535,1,536,1],[535,2,536,2],[542,5,542,7],[537,0,541,0],[537,1,539,1],[537,2,539,2],[537,5,537,7],[538,5,538,7],[539,5,539,7],[540,1,541,1],[540,2,541,2],[540,5,540,7],[541,5,541,7]]}
[]
["業種一覧表（日本産業分類コード）"]
[]
[]
[]
[]
[]
["大分類","中分類","中分類","小分類 (上3桁)","小分類","選択リスト",null,null,"参考：選択リスト"]
[null,"（上２桁）"]
["Ａ　農業・林業","01","農業",10,"管理，補助的経済活動を行う事業所（01農業）",{"$f":"D10&\"　\"&E10","v":"10　管理，補助的経済活動を行う事業所（01農業）"},null,null,"10　管理，補助的経済活動を行う事業所（01農業）"]
[null,null,null,11,"耕種農業",{"$f":"D11&\"　\"&E11","v":"11　耕種農業"},null,null,"11　耕種農業"]
[null,null,null,12,"畜産農業","12　畜産農業",null,null,"12　畜産農業"]
[null,null,null,13,"農業サービス業（園芸サービス業を除く）","13　農業サービス業（園芸サービス業を除く）",null,null,"13　農業サービス業（園芸サービス業を除く）"]
[null,null,null,14,"園芸サービス業","14　園芸サービス業",null,null,"14　園芸サービス業"]
[null,"02","林業",20,"管理，補助的経済活動を行う事業所(02 林業)","20　管理，補助的経済活動を行う事業所(02 林業)",null,null,"20　管理，補助的経済活動を行う事業所(02 林業)"]
[null,null,null,21,"育林業","21　育林業",null,null,"21　育林業"]
[null,null,null,22,"素材生産業","22　素材生産業",null,null,"22　素材生産業"]
[null,null,null,23,"特用林産物生産業（きのこ類の栽培を除く）","23　特用林産物生産業（きのこ類の栽培を除く）",null,null,"23　特用林産物生産業（きのこ類の栽培を除く）"]
[null,null,null,24,"林業サービス業","24　林業サービス業",null,null,"24　林業サービス業"]
[null,null,null,29,"その他の林業","29　その他の林業",null,null,"29　その他の林業"]
["B　漁業","03","漁業（水産養殖業を除く）",30,"管理，補助的経済活動を行う事業所(03 漁業)","30　管理，補助的経済活動を行う事業所(03 漁業)",null,null,"30　管理，補助的経済活動を行う事業所(03 漁業)"]
[null,null,null,31,"海面漁業","31　海面漁業",null,null,"31　海面漁業"]
[null,null,null,32,"内水面漁業","32　内水面漁業",null,null,"32　内水面漁業"]
[null,"04","水産養殖業",40,"管理，補助的経済活動を行う事業所(04 水産養殖業)","40　管理，補助的経済活動を行う事業所(04 水産養殖業)",null,null,"40　管理，補助的経済活動を行う事業所(04 水産養殖業)"]
[null,null,null,41,"海面養殖業","41　海面養殖業",null,null,"41　海面養殖業"]
[null,null,null,42,"内水面養殖業","42　内水面養殖業",null,null,"42　内水面養殖業"]
["C　鉱業・採石業・砂利採取業","05","鉱業，採石業，砂利採取業",50,"管理，補助的経済活動を行う事業所（05 鉱業，採石業，砂利採取","50　管理，補助的経済活動を行う事業所（05 鉱業，採石業，砂利採取",null,null,"50　管理，補助的経済活動を行う事業所（05 鉱業，採石業，砂利採取"]
[null,null,null,51,"金属鉱業","51　金属鉱業",null,null,"51　金属鉱業"]
[null,null,null,52,"石炭・亜炭鉱業","52　石炭・亜炭鉱業",null,null,"52　石炭・亜炭鉱業"]
[null,null,null,53,"原油・天然ガス鉱業","53　原油・天然ガス鉱業",null,null,"53　原油・天然ガス鉱業"]
[null,null,null,54,"採石業，砂・砂利・玉石採取業","54　採石業，砂・砂利・玉石採取業",null,null,"54　採石業，砂・砂利・玉石採取業"]
[null,null,null,55,"窯業原料用鉱物鉱業（耐火物・陶磁器・ガラス・セメント原料用に限る）","55　窯業原料用鉱物鉱業（耐火物・陶磁器・ガラス・セメント原料用に限る）",null,null,"55　窯業原料用鉱物鉱業（耐火物・陶磁器・ガラス・セメント原料用に限る）"]
[null,null,null,59,"その他の鉱業","59　その他の鉱業",null,null,"59　その他の鉱業"]
["D　建設業","06","総合工事業",60,"管理，補助的経済活動を行う事業所(06 総合工事業)","60　管理，補助的経済活動を行う事業所(06 総合工事業)",null,null,"60　管理，補助的経済活動を行う事業所(06 総合工事業)"]
[null,null,null,61,"一般土木建築工事業","61　一般土木建築工事業",null,null,"61　一般土木建築工事業"]
[null,null,null,62,"土木工事業（舗装工事業を除く）","62　土木工事業（舗装工事業を除く）",null,null,"62　土木工事業（舗装工事業を除く）"]
[null,null,null,63,"舗装工事業","63　舗装工事業",null,null,"63　舗装工事業"]
[null,null,null,64,"建築工事業（木造建築工事業を除く）","64　建築工事業（木造建築工事業を除く）",null,null,"64　建築工事業（木造建築工事業を除く）"]
[null,null,null,65,"木造建築工事業","65　木造建築工事業",null,null,"65　木造建築工事業"]
[null,null,null,66,"建築リフォーム工事業","66　建築リフォーム工事業",null,null,"66　建築リフォーム工事業"]
[null,"07","職別工事業（設備工事業を除く）",70,"管理，補助的経済活動を行う事業所(07 職別工事業)","70　管理，補助的経済活動を行う事業所(07 職別工事業)",null,null,"70　管理，補助的経済活動を行う事業所(07 職別工事業)"]
[null,null,null,71,"大工工事業","71　大工工事業",null,null,"71　大工工事業"]
[null,null,null,72,"とび・土工・コンクリート工事業","72　とび・土工・コンクリート工事業",null,null,"72　とび・土工・コンクリート工事業"]
[null,null,null,73,"鉄骨・鉄筋工事業","73　鉄骨・鉄筋工事業",null,null,"73　鉄骨・鉄筋工事業"]
[null,null,null,74,"石工・れんが・タイル・ブロック工事業","74　石工・れんが・タイル・ブロック工事業",null,null,"74　石工・れんが・タイル・ブロック工事業"]
[null,null,null,75,"左官工事業","75　左官工事業",null,null,"75　左官工事業"]
[null,null,null,76,"板金・金物工事業","76　板金・金物工事業",null,null,"76　板金・金物工事業"]
[null,null,null,77,"塗装工事業","77　塗装工事業",null,null,"77　塗装工事業"]
[null,null,null,78,"床・内装工事業","78　床・内装工事業",null,null,"78　床・内装工事業"]
[null,null,null,79,"その他の職別工事業","79　その他の職別工事業",null,null,"79　その他の職別工事業"]
[null,"08","設備工事業",80,"管理，補助的経済活動を行う事業所(08 設備工事業)","80　管理，補助的経済活動を行う事業所(08 設備工事業)",null,null,"80　管理，補助的経済活動を行う事業所(08 設備工事業)"]
[null,null,null,81,"電気工事業","81　電気工事業",null,null,"81　電気工事業"]
[null,null,null,82,"電気通信・信号装置工事業","82　電気通信・信号装置工事業",null,null,"82　電気通信・信号装置工事業"]
[null,null,null,83,"管工事業（さく井工事業を除く）","83　管工事業（さく井工事業を除く）",null,null,"83　管工事業（さく井工事業を除く）"]
[null,null,null,84,"機械器具設置工事業","84　機械器具設置工事業",null,null,"84　機械器具設置工事業"]
[null,null,null,89,"その他の設備工事業","89　その他の設備工事業",null,null,"89　その他の設備工事業"]
[null,"09","食料品製造業",90,"管理，補助的経済活動を行う事業所（09 食料品製造業）","90　管理，補助的経済活動を行う事業所（09 食料品製造業）",null,null,"90　管理，補助的経済活動を行う事業所（09 食料品製造業）"]
[null,null,null,91,"畜産食料品製造業","91　畜産食料品製造業",null,null,"91　畜産食料品製造業"]
[null,null,null,92,"水産食料品製造業","92　水産食料品製造業",null,null,"92　水産食料品製造業"]
[null,null,null,93,"野菜缶詰・果実缶詰・農産保存食料品製造業","93　野菜缶詰・果実缶詰・農産保存食料品製造業",null,null,"93　野菜缶詰・果実缶詰・農産保存食料品製造業"]
[null,null,null,94,"調味料製造業","94　調味料製造業",null,null,"94　調味料製造業"]
[null,null,null,95,"砂糖・でんぷん糖類製造業","95　砂糖・でんぷん糖類製造業",null,null,"95　砂糖・でんぷん糖類製造業"]
[null,null,null,96,"精穀・製粉業","96　精穀・製粉業",null,null,"96　精穀・製粉業"]
[null,null,null,97,"パン・菓子製造業","97　パン・菓子製造業",null,null,"97　パン・菓子製造業"]
[null,null,null,98,"動植物油脂製造業","98　動植物油脂製造業",null,null,"98　動植物油脂製造業"]
[null,null,null,99,"その他の食料品製造業","99　その他の食料品製造業",null,null,"99　その他の食料品製造業"]
[null,10,"飲料・たばこ・飼料製造業",100,"管理，補助的経済活動を行う事業所（10 飲料・たばこ・飼料製造業）","100　管理，補助的経済活動を行う事業所（10 飲料・たばこ・飼料製造業）",null,null,"100　管理，補助的経済活動を行う事業所（10 飲料・たばこ・飼料製造業）"]
[null,null,null,101,"清涼飲料製造業","101　清涼飲料製造業",null,null,"101　清涼飲料製造業"]
[null,null,null,102,"酒類製造業","102　酒類製造業",null,null,"102　酒類製造業"]
[null,null,null,103,"茶・コーヒー製造業（清涼飲料を除く）","103　茶・コーヒー製造業（清涼飲料を除く）",null,null,"103　茶・コーヒー製造業（清涼飲料を除く）"]
[null,null,null,104,"製氷業","104　製氷業",null,null,"104　製氷業"]
[null,null,null,105,"たばこ製造業","105　たばこ製造業",null,null,"105　たばこ製造業"]
[null,null,null,106,"飼料・有機質肥料製造業","106　飼料・有機質肥料製造業",null,null,"106　飼料・有機質肥料製造業"]
[null,11,"繊維工業",110,"管理，補助的経済活動を行う事業所（11 繊維工業）","110　管理，補助的経済活動を行う事業所（11 繊維工業）",null,null,"110　管理，補助的経済活動を行う事業所（11 繊維工業）"]
[null,null,null,111,"製糸業，紡績業，化学繊維・ねん糸等製造業",{"$f":"D75&\"　\"&E75","v":"111　製糸業，紡績業，化学繊維・ねん糸等製造業"},null,null,"111　製糸業，紡績業，化学繊維・ねん糸等製造業"]
[null,null,null,112,"織物業","112　織物業",null,null,"112　織物業"]
[null,null,null,113,"ニット生地製造業","113　ニット生地製造業",null,null,"113　ニット生地製造業"]
[null,null,null,114,"染色整理業","114　染色整理業",null,null,"114　染色整理業"]
[null,null,null,115,"綱・網・レース・繊維粗製品製造業","115　綱・網・レース・繊維粗製品製造業",null,null,"115　綱・網・レース・繊維粗製品製造業"]
[null,null,null,116,"外衣・シャツ製造業（和式を除く）","116　外衣・シャツ製造業（和式を除く）",null,null,"116　外衣・シャツ製造業（和式を除く）"]
[null,null,null,117,"下着類製造業","117　下着類製造業",null,null,"117　下着類製造業"]
[null,null,null,118,"和装製品・その他の衣服・繊維製身の回り品製造業","118　和装製品・その他の衣服・繊維製身の回り品製造業",null,null,"118　和装製品・その他の衣服・繊維製身の回り品製造業"]
[null,null,null,119,"その他の繊維製品製造業","119　その他の繊維製品製造業",null,null,"119　その他の繊維製品製造業"]
[null,12,"木材・木製品製造業（家具を除く）",120,"管理，補助的経済活動を行う事業所（12 木材・木製品製造業）","120　管理，補助的経済活動を行う事業所（12 木材・木製品製造業）",null,null,"120　管理，補助的経済活動を行う事業所（12 木材・木製品製造業）"]
[null,null,null,121,"製材業，木製品製造業","121　製材業，木製品製造業",null,null,"121　製材業，木製品製造業"]
[null,null,null,122,"造作材・合板・建築用組立材料製造業","122　造作材・合板・建築用組立材料製造業",null,null,"122　造作材・合板・建築用組立材料製造業"]
[null,null,null,123,"木製容器製造業（竹，とうを含む）","123　木製容器製造業（竹，とうを含む）",null,null,"123　木製容器製造業（竹，とうを含む）"]
[null,null,null,129,"その他の木製品製造業（竹，とうを含む）","129　その他の木製品製造業（竹，とうを含む）",null,null,"129　その他の木製品製造業（竹，とうを含む）"]
[null,13,"家具・装備品製造業",130,"管理，補助的経済活動を行う事業所（13 家具・装備品製造業）","130　管理，補助的経済活動を行う事業所（13 家具・装備品製造業）",null,null,"130　管理，補助的経済活動を行う事業所（13 家具・装備品製造業）"]
[null,null,null,131,"家具製造業","131　家具製造業",null,null,"131　家具製造業"]
[null,null,null,132,"宗教用具製造業","132　宗教用具製造業",null,null,"132　宗教用具製造業"]
[null,null,null,133,"建具製造業","133　建具製造業",null,null,"133　建具製造業"]
[null,null,null,139,"その他の家具・装備品製造業","139　その他の家具・装備品製造業",null,null,"139　その他の家具・装備品製造業"]
[null,14,"パルプ・紙・紙加工品製造業",140,"管理，補助的経済活動を行う事業所（14 パルプ・紙・紙加工品製造業）","140　管理，補助的経済活動を行う事業所（14 パルプ・紙・紙加工品製造業）",null,null,"140　管理，補助的経済活動を行う事業所（14 パルプ・紙・紙加工品製造業）"]
[null,null,null,141,"パルプ製造業","141　パルプ製造業",null,null,"141　パルプ製造業"]
[null,null,null,142,"紙製造業","142　紙製造業",null,null,"142　紙製造業"]
[null,null,null,143,"加工紙製造業","143　加工紙製造業",null,null,"143　加工紙製造業"]
[null,null,null,144,"紙製品製造業","144　紙製品製造業",null,null,"144　紙製品製造業"]
[null,null,null,145,"紙製容器製造業","145　紙製容器製造業",null,null,"145　紙製容器製造業"]
[null,null,null,149,"その他のパルプ・紙・紙加工品製造業","149　その他のパルプ・紙・紙加工品製造業",null,null,"149　その他のパルプ・紙・紙加工品製造業"]
["E　製造業",15,"印刷・同関連業",150,"管理，補助的経済活動を行う事業所（15 印刷・同関連業）","150　管理，補助的経済活動を行う事業所（15 印刷・同関連業）",null,null,"150　管理，補助的経済活動を行う事業所（15 印刷・同関連業）"]
[null,null,null,151,"印刷業","151　印刷業",null,null,"151　印刷業"]
[null,null,null,152,"製版業","152　製版業",null,null,"152　製版業"]
[null,null,null,153,"製本業，印刷物加工業","153　製本業，印刷物加工業",null,null,"153　製本業，印刷物加工業"]
[null,null,null,159,"印刷関連サービス業","159　印刷関連サービス業",null,null,"159　印刷関連サービス業"]
[null,16,"化学工業",160,"管理，補助的経済活動を行う事業所（16 化学工業）","160　管理，補助的経済活動を行う事業所（16 化学工業）",null,null,"160　管理，補助的経済活動を行う事業所（16 化学工業）"]
[null,null,null,161,"化学肥料製造業","161　化学肥料製造業",null,null,"161　化学肥料製造業"]
[null,null,null,162,"無機化学工業製品製造業","162　無機化学工業製品製造業",null,null,"162　無機化学工業製品製造業"]
[null,null,null,163,"有機化学工業製品製造業","163　有機化学工業製品製造業",null,null,"163　有機化学工業製品製造業"]
[null,null,null,164,"油脂加工製品・石けん・合成洗剤・界面活性剤・塗料製造業","164　油脂加工製品・石けん・合成洗剤・界面活性剤・塗料製造業",null,null,"164　油脂加工製品・石けん・合成洗剤・界面活性剤・塗料製造業"]
[null,null,null,165,"医薬品製造業","165　医薬品製造業",null,null,"165　医薬品製造業"]
[null,null,null,166,"化粧品・歯磨・その他の化粧用調整品製造業","166　化粧品・歯磨・その他の化粧用調整品製造業",null,null,"166　化粧品・歯磨・その他の化粧用調整品製造業"]
[null,null,null,169,"その他の化学工業","169　その他の化学工業",null,null,"169　その他の化学工業"]
[null,17,"石油製品・石炭製品製造業",170,"管理，補助的経済活動を行う事業所（17 石油製品・石炭製品製造業）","170　管理，補助的経済活動を行う事業所（17 石油製品・石炭製品製造業）",null,null,"170　管理，補助的経済活動を行う事業所（17 石油製品・石炭製品製造業）"]
[null,null,null,171,"石油精製業","171　石油精製業",null,null,"171　石油精製業"]
[null,null,null,172,"潤滑油・グリース製造業（石油精製によらないもの）","172　潤滑油・グリース製造業（石油精製によらないもの）",null,null,"172　潤滑油・グリース製造業（石油精製によらないもの）"]
[null,null,null,173,"コークス製造業","173　コークス製造業",null,null,"173　コークス製造業"]
[null,null,null,174,"舗装材料製造業","174　舗装材料製造業",null,null,"174　舗装材料製造業"]
[null,null,null,179,"その他の石油製品・石炭製品製造業","179　その他の石油製品・石炭製品製造業",null,null,"179　その他の石油製品・石炭製品製造業"]
[null,18,"プラスチック製品製造業（別掲を除く）",180,"管理，補助的経済活動を行う事業所（18 プラスチック製品製造","180　管理，補助的経済活動を行う事業所（18 プラスチック製品製造",null,null,"180　管理，補助的経済活動を行う事業所（18 プラスチック製品製造"]
[null,null,null,181,"プラスチック板・棒・管・継手・異形押出製品製造業","181　プラスチック板・棒・管・継手・異形押出製品製造業",null,null,"181　プラスチック板・棒・管・継手・異形押出製品製造業"]
[null,null,null,182,"プラスチックフィルム・シート・床材・合成皮革製造業","182　プラスチックフィルム・シート・床材・合成皮革製造業",null,null,"182　プラスチックフィルム・シート・床材・合成皮革製造業"]
[null,null,null,183,"工業用プラスチック製品製造業","183　工業用プラスチック製品製造業",null,null,"183　工業用プラスチック製品製造業"]
[null,null,null,184,"発泡・強化プラスチック製品製造業","184　発泡・強化プラスチック製品製造業",null,null,"184　発泡・強化プラスチック製品製造業"]
[null,null,null,185,"プラスチック成形材料製造業（廃プラスチックを含む）","185　プラスチック成形材料製造業（廃プラスチックを含む）",null,null,"185　プラスチック成形材料製造業（廃プラスチックを含む）"]
[null,null,null,189,"その他のプラスチック製品製造業","189　その他のプラスチック製品製造業",null,null,"189　その他のプラスチック製品製造業"]
[null,19,"ゴム製品製造業",190,"管理，補助的経済活動を行う事業所（19 ゴム製品製造業）","190　管理，補助的経済活動を行う事業所（19 ゴム製品製造業）",null,null,"190　管理，補助的経済活動を行う事業所（19 ゴム製品製造業）"]
[null,null,null,191,"タイヤ・チューブ製造業","191　タイヤ・チューブ製造業",null,null,"191　タイヤ・チューブ製造業"]
[null,null,null,192,"ゴム製・プラスチック製履物・同附属品製造業","192　ゴム製・プラスチック製履物・同附属品製造業",null,null,"192　ゴム製・プラスチック製履物・同附属品製造業"]
[null,null,null,193,"ゴムベルト・ゴムホース・工業用ゴム製品製造業","193　ゴムベルト・ゴムホース・工業用ゴム製品製造業",null,null,"193　ゴムベルト・ゴムホース・工業用ゴム製品製造業"]
[null,null,null,199,"その他のゴム製品製造業","199　その他のゴム製品製造業",null,null,"199　その他のゴム製品製造業"]
[null,20,"なめし革・同製品・毛皮製造業",200,"管理，補助的経済活動を行う事業所（20 なめし革・同製品・毛皮製造業）","200　管理，補助的経済活動を行う事業所（20 なめし革・同製品・毛皮製造業）",null,null,"200　管理，補助的経済活動を行う事業所（20 なめし革・同製品・毛皮製造業）"]
[null,null,null,201,"なめし革製造業","201　なめし革製造業",null,null,"201　なめし革製造業"]
[null,null,null,202,"工業用革製品製造業（手袋を除く）","202　工業用革製品製造業（手袋を除く）",null,null,"202　工業用革製品製造業（手袋を除く）"]
[null,null,null,203,"革製履物用材料・同附属品製造業","203　革製履物用材料・同附属品製造業",null,null,"203　革製履物用材料・同附属品製造業"]
[null,null,null,204,"革製履物製造業","204　革製履物製造業",null,null,"204　革製履物製造業"]
[null,null,null,205,"革製手袋製造業","205　革製手袋製造業",null,null,"205　革製手袋製造業"]
[null,null,null,206,"かばん製造業","206　かばん製造業",null,null,"206　かばん製造業"]
[null,null,null,207,"袋物製造業",{"$f":"D139&\"　\"&E139","v":"207　袋物製造業"},null,null,"207　袋物製造業"]
[null,null,null,208,"毛皮製造業","208　毛皮製造業",null,null,"208　毛皮製造業"]
[null,null,null,209,"その他のなめし革製品製造業","209　その他のなめし革製品製造業",null,null,"209　その他のなめし革製品製造業"]
[null,21,"窯業・土石製品製造業",210,"管理，補助的経済活動を行う事業所（21 窯業・土石製品製造業）","210　管理，補助的経済活動を行う事業所（21 窯業・土石製品製造業）",null,null,"210　管理，補助的経済活動を行う事業所（21 窯業・土石製品製造業）"]
[null,null,null,211,"ガラス・同製品製造業","211　ガラス・同製品製造業",null,null,"211　ガラス・同製品製造業"]
[null,null,null,212,"セメント・同製品製造業","212　セメント・同製品製造業",null,null,"212　セメント・同製品製造業"]
[null,null,null,213,"建設用粘土製品製造業（陶磁器製を除く）","213　建設用粘土製品製造業（陶磁器製を除く）",null,null,"213　建設用粘土製品製造業（陶磁器製を除く）"]
[null,null,null,214,"陶磁器・同関連製品製造業","214　陶磁器・同関連製品製造業",null,null,"214　陶磁器・同関連製品製造業"]
[null,null,null,215,"耐火物製造業","215　耐火物製造業",null,null,"215　耐火物製造業"]
[null,null,null,216,"炭素・黒鉛製品製造業","216　炭素・黒鉛製品製造業",null,null,"216　炭素・黒鉛製品製造業"]
[null,null,null,217,"研磨材・同製品製造業","217　研磨材・同製品製造業",null,null,"217　研磨材・同製品製造業"]
[null,null,null,218,"骨材・石工品等製造業","218　骨材・石工品等製造業",null,null,"218　骨材・石工品等製造業"]
[null,null,null,219,"その他の窯業・土石製品製造業","219　その他の窯業・土石製品製造業",null,null,"219　その他の窯業・土石製品製造業"]
[null,22,"鉄鋼業",220,"管理，補助的経済活動を行う事業所（22 鉄鋼業）","220　管理，補助的経済活動を行う事業所（22 鉄鋼業）",null,null,"220　管理，補助的経済活動を行う事業所（22 鉄鋼業）"]
[null,null,null,221,"製鉄業","221　製鉄業",null,null,"221　製鉄業"]
[null,null,null,222,"製鋼・製鋼圧延業","222　製鋼・製鋼圧延業",null,null,"222　製鋼・製鋼圧延業"]
[null,null,null,223,"製鋼を行わない鋼材製造業（表面処理鋼材を除く）","223　製鋼を行わない鋼材製造業（表面処理鋼材を除く）",null,null,"223　製鋼を行わない鋼材製造業（表面処理鋼材を除く）"]
[null,null,null,224,"表面処理鋼材製造業","224　表面処理鋼材製造業",null,null,"224　表面処理鋼材製造業"]
[null,null,null,225,"鉄素形材製造業","225　鉄素形材製造業",null,null,"225　鉄素形材製造業"]
[null,null,null,229,"その他の鉄鋼業","229　その他の鉄鋼業",null,null,"229　その他の鉄鋼業"]
[null,23,"非鉄金属製造業",230,"管理，補助的経済活動を行う事業所（23 非鉄金属製造業）","230　管理，補助的経済活動を行う事業所（23 非鉄金属製造業）",null,null,"230　管理，補助的経済活動を行う事業所（23 非鉄金属製造業）"]
[null,null,null,231,"非鉄金属第１次製錬・精製業","231　非鉄金属第１次製錬・精製業",null,null,"231　非鉄金属第１次製錬・精製業"]
[null,null,null,232,"非鉄金属第２次製錬・精製業（非鉄金属合金製造業を含む）","232　非鉄金属第２次製錬・精製業（非鉄金属合金製造業を含む）",null,null,"232　非鉄金属第２次製錬・精製業（非鉄金属合金製造業を含む）"]
[null,null,null,233,"非鉄金属・同合金圧延業（抽伸，押出しを含む）","233　非鉄金属・同合金圧延業（抽伸，押出しを含む）",null,null,"233　非鉄金属・同合金圧延業（抽伸，押出しを含む）"]
[null,null,null,234,"電線・ケーブル製造業","234　電線・ケーブル製造業",null,null,"234　電線・ケーブル製造業"]
[null,null,null,235,"非鉄金属素形材製造業","235　非鉄金属素形材製造業",null,null,"235　非鉄金属素形材製造業"]
[null,null,null,239,"その他の非鉄金属製造業","239　その他の非鉄金属製造業",null,null,"239　その他の非鉄金属製造業"]
[null,24,"金属製品製造業",240,"管理，補助的経済活動を行う事業所（24 金属製品製造業）","240　管理，補助的経済活動を行う事業所（24 金属製品製造業）",null,null,"240　管理，補助的経済活動を行う事業所（24 金属製品製造業）"]
[null,null,null,241,"ブリキ缶・その他のめっき板等製品製造業","241　ブリキ缶・その他のめっき板等製品製造業",null,null,"241　ブリキ缶・その他のめっき板等製品製造業"]
[null,null,null,242,"洋食器・刃物・手道具・金物類製造業","242　洋食器・刃物・手道具・金物類製造業",null,null,"242　洋食器・刃物・手道具・金物類製造業"]
[null,null,null,243,"暖房装置・配管工事用附属品製造業","243　暖房装置・配管工事用附属品製造業",null,null,"243　暖房装置・配管工事用附属品製造業"]
[null,null,null,244,"建設用・建築用金属製品製造業（製缶板金業を含む）","244　建設用・建築用金属製品製造業（製缶板金業を含む）",null,null,"244　建設用・建築用金属製品製造業（製缶板金業を含む）"]
[null,null,null,245,"金属素形材製品製造業","245　金属素形材製品製造業",null,null,"245　金属素形材製品製造業"]
[null,null,null,246,"金属被覆・彫刻業，熱処理業（ほうろう鉄器を除く）","246　金属被覆・彫刻業，熱処理業（ほうろう鉄器を除く）",null,null,"246　金属被覆・彫刻業，熱処理業（ほうろう鉄器を除く）"]
[null,null,null,247,"金属線製品製造業（ねじ類を除く）","247　金属線製品製造業（ねじ類を除く）",null,null,"247　金属線製品製造業（ねじ類を除く）"]
[null,null,null,248,"ボルト・ナット・リベット・小ねじ・木ねじ等製造業","248　ボルト・ナット・リベット・小ねじ・木ねじ等製造業",null,null,"248　ボルト・ナット・リベット・小ねじ・木ねじ等製造業"]
[null,null,null,249,"その他の金属製品製造業","249　その他の金属製品製造業",null,null,"249　その他の金属製品製造業"]
[null,25,"はん用機械器具製造業",250,"管理，補助的経済活動を行う事業所（25 はん用機械器具製造業）","250　管理，補助的経済活動を行う事業所（25 はん用機械器具製造業）",null,null,"250　管理，補助的経済活動を行う事業所（25 はん用機械器具製造業）"]
[null,null,null,251,"ボイラ・原動機製造業","251　ボイラ・原動機製造業",null,null,"251　ボイラ・原動機製造業"]
[null,null,null,252,"ポンプ・圧縮機器製造業","252　ポンプ・圧縮機器製造業",null,null,"252　ポンプ・圧縮機器製造業"]
[null,null,null,253,"一般産業用機械・装置製造業","253　一般産業用機械・装置製造業",null,null,"253　一般産業用機械・装置製造業"]
[null,null,null,259,"その他のはん用機械・同部分品製造業","259　その他のはん用機械・同部分品製造業",null,null,"259　その他のはん用機械・同部分品製造業"]
[null,26,"生産用機械器具製造業",260,"管理，補助的経済活動を行う事業所（26 生産用機械器具製造業）","260　管理，補助的経済活動を行う事業所（26 生産用機械器具製造業）",null,null,"260　管理，補助的経済活動を行う事業所（26 生産用機械器具製造業）"]
[null,null,null,261,"農業用機械製造業（農業用器具を除く）","261　農業用機械製造業（農業用器具を除く）",null,null,"261　農業用機械製造業（農業用器具を除く）"]
[null,null,null,262,"建設機械・鉱山機械製造業","262　建設機械・鉱山機械製造業",null,null,"262　建設機械・鉱山機械製造業"]
[null,null,null,263,"繊維機械製造業","263　繊維機械製造業",null,null,"263　繊維機械製造業"]
[null,null,null,264,"生活関連産業用機械製造業","264　生活関連産業用機械製造業",null,null,"264　生活関連産業用機械製造業"]
[null,null,null,265,"基礎素材産業用機械製造業","265　基礎素材産業用機械製造業",null,null,"265　基礎素材産業用機械製造業"]
[null,null,null,266,"金属加工機械製造業","266　金属加工機械製造業",null,null,"266　金属加工機械製造業"]
[null,null,null,267,"半導体・フラットパネルディスプレイ製造装置製造業","267　半導体・フラットパネルディスプレイ製造装置製造業",null,null,"267　半導体・フラットパネルディスプレイ製造装置製造業"]
[null,null,null,269,"その他の生産用機械・同部分品製造業","269　その他の生産用機械・同部分品製造業",null,null,"269　その他の生産用機械・同部分品製造業"]
[null,27,"業務用機械器具製造業",270,"管理，補助的経済活動を行う事業所（27 業務用機械器具製造業）","270　管理，補助的経済活動を行う事業所（27 業務用機械器具製造業）",null,null,"270　管理，補助的経済活動を行う事業所（27 業務用機械器具製造業）"]
[null,null,null,271,"事務用機械器具製造業","271　事務用機械器具製造業",null,null,"271　事務用機械器具製造業"]
[null,null,null,272,"サービス用・娯楽用機械器具製造業","272　サービス用・娯楽用機械器具製造業",null,null,"272　サービス用・娯楽用機械器具製造業"]
[null,null,null,273,"計量器・測定器・分析機器・試験機・測量機械器具・理化学機械器具製造業","273　計量器・測定器・分析機器・試験機・測量機械器具・理化学機械器具製造業",null,null,"273　計量器・測定器・分析機器・試験機・測量機械器具・理化学機械器具製造業"]
[null,null,null,274,"医療用機械器具・医療用品製造業","274　医療用機械器具・医療用品製造業",null,null,"274　医療用機械器具・医療用品製造業"]
[null,null,null,275,"光学機械器具・レンズ製造業","275　光学機械器具・レンズ製造業",null,null,"275　光学機械器具・レンズ製造業"]
[null,null,null,276,"武器製造業","276　武器製造業",null,null,"276　武器製造業"]
[null,28,"電子部品・デバイス・電子回路製造業",280,"管理，補助的経済活動を行う事業所（28 電子部品・デバイス・電子回路製造業）","280　管理，補助的経済活動を行う事業所（28 電子部品・デバイス・電子回路製造業）",null,null,"280　管理，補助的経済活動を行う事業所（28 電子部品・デバイス・電子回路製造業）"]
[null,null,null,281,"電子デバイス製造業","281　電子デバイス製造業",null,null,"281　電子デバイス製造業"]
[null,null,null,282,"電子部品製造業","282　電子部品製造業",null,null,"282　電子部品製造業"]
[null,null,null,283,"記録メディア製造業","283　記録メディア製造業",null,null,"283　記録メディア製造業"]
[null,null,null,284,"電子回路製造業","284　電子回路製造業",null,null,"284　電子回路製造業"]
[null,null,null,285,"ユニット部品製造業","285　ユニット部品製造業",null,null,"285　ユニット部品製造業"]
[null,null,null,289,"その他の電子部品・デバイス・電子回路製造業",{"$f":"D203&\"　\"&E203","v":"289　その他の電子部品・デバイス・電子回路製造業"},null,null,"289　その他の電子部品・デバイス・電子回路製造業"]
[null,29,"電気機械器具製造業",290,"管理，補助的経済活動を行う事業所（２９電気機械器具製造業）","290　管理，補助的経済活動を行う事業所（２９電気機械器具製造業）",null,null,"290　管理，補助的経済活動を行う事業所（２９電気機械器具製造業）"]
[null,null,null,291,"発電用・送電用・配電用電気機械器具製造業","291　発電用・送電用・配電用電気機械器具製造業",null,null,"291　発電用・送電用・配電用電気機械器具製造業"]
[null,null,null,292,"産業用電気機械器具製造業","292　産業用電気機械器具製造業",null,null,"292　産業用電気機械器具製造業"]
[null,null,null,293,"民生用電気機械器具製造業","293　民生用電気機械器具製造業",null,null,"293　民生用電気機械器具製造業"]
[null,null,null,294,"電球・電気照明器具製造業","294　電球・電気照明器具製造業",null,null,"294　電球・電気照明器具製造業"]
[null,null,null,295,"電池製造業","295　電池製造業",null,null,"295　電池製造業"]
[null,null,null,296,"電子応用装置製造業","296　電子応用装置製造業",null,null,"296　電子応用装置製造業"]
[null,null,null,297,"電気計測器製造業","297　電気計測器製造業",null,null,"297　電気計測器製造業"]
[null,null,null,299,"その他の電気機械器具製造業","299　その他の電気機械器具製造業",null,null,"299　その他の電気機械器具製造業"]
[null,30,"情報通信機械器具製造業",300,"管理、補助的経済活動を行う事業所（30 情報通信機械器具製造業）","300　管理、補助的経済活動を行う事業所（30 情報通信機械器具製造業）",null,null,"300　管理、補助的経済活動を行う事業所（30 情報通信機械器具製造業）"]
[null,null,null,301,"通信機械器具・同関連機械器具製造業","301　通信機械器具・同関連機械器具製造業",null,null,"301　通信機械器具・同関連機械器具製造業"]
[null,null,null,302,"映像・音響機械器具製造業","302　映像・音響機械器具製造業",null,null,"302　映像・音響機械器具製造業"]
[null,null,null,303,"電子計算機・同附属装置製造業","303　電子計算機・同附属装置製造業",null,null,"303　電子計算機・同附属装置製造業"]
[null,31,"輸送用機械器具製造業",310,"管理，補助的経済活動を行う事業所（３１輸送用機械器具製造業）","310　管理，補助的経済活動を行う事業所（３１輸送用機械器具製造業）",null,null,"310　管理，補助的経済活動を行う事業所（３１輸送用機械器具製造業）"]
[null,null,null,311,"自動車・同附属品製造業","311　自動車・同附属品製造業",null,null,"311　自動車・同附属品製造業"]
[null,null,null,312,"鉄道車両・同部分品製造業","312　鉄道車両・同部分品製造業",null,null,"312　鉄道車両・同部分品製造業"]
[null,null,null,313,"船舶製造・修理業，舶用機関製造業","313　船舶製造・修理業，舶用機関製造業",null,null,"313　船舶製造・修理業，舶用機関製造業"]
[null,null,null,314,"航空機・同附属品製造業","314　航空機・同附属品製造業",null,null,"314　航空機・同附属品製造業"]
[null,null,null,315,"産業用運搬車両・同部分品・附属品製造業","315　産業用運搬車両・同部分品・附属品製造業",null,null,"315　産業用運搬車両・同部分品・附属品製造業"]
[null,null,null,319,"その他の輸送用機械器具製造業","319　その他の輸送用機械器具製造業",null,null,"319　その他の輸送用機械器具製造業"]
[null,32,"その他の製造業",320,"管理，補助的経済活動を行う事業所（３２その他の製造業）","320　管理，補助的経済活動を行う事業所（３２その他の製造業）",null,null,"320　管理，補助的経済活動を行う事業所（３２その他の製造業）"]
[null,null,null,321,"貴金属・宝石製品製造業","321　貴金属・宝石製品製造業",null,null,"321　貴金属・宝石製品製造業"]
[null,null,null,322,"装身具・装飾品・ボタン・同関連品製造業（貴金属・宝石製を除く","322　装身具・装飾品・ボタン・同関連品製造業（貴金属・宝石製を除く",null,null,"322　装身具・装飾品・ボタン・同関連品製造業（貴金属・宝石製を除く"]
[null,null,null,323,"時計・同部分品製造業","323　時計・同部分品製造業",null,null,"323　時計・同部分品製造業"]
[null,null,null,324,"楽器製造業","324　楽器製造業",null,null,"324　楽器製造業"]
[null,null,null,325,"がん具・運動用具製造業","325　がん具・運動用具製造業",null,null,"325　がん具・運動用具製造業"]
[null,null,null,326,"ペン・鉛筆・絵画用品・その他の事務用品製造業","326　ペン・鉛筆・絵画用品・その他の事務用品製造業",null,null,"326　ペン・鉛筆・絵画用品・その他の事務用品製造業"]
[null,null,null,327,"漆器製造業","327　漆器製造業",null,null,"327　漆器製造業"]
[null,null,null,328,"畳等生活雑貨製品製造業","328　畳等生活雑貨製品製造業",null,null,"328　畳等生活雑貨製品製造業"]
[null,null,null,329,"他に分類されない製造業","329　他に分類されない製造業",null,null,"329　他に分類されない製造業"]
["F　電気・ガス・熱供給・水道業",33,"電気業",330,"管理，補助的経済活動を行う事業所（３３電気業）","330　管理，補助的経済活動を行う事業所（３３電気業）",null,null,"330　管理，補助的経済活動を行う事業所（３３電気業）"]
[null,null,null,331,"電気業","331　電気業",null,null,"331　電気業"]
[null,34,"ガス業",340,"管理，補助的経済活動を行う事業所（３４ガス業）","340　管理，補助的経済活動を行う事業所（３４ガス業）",null,null,"340　管理，補助的経済活動を行う事業所（３４ガス業）"]
[null,null,null,341,"ガス業","341　ガス業",null,null,"341　ガス業"]
[null,35,"熱供給業",350,"管理，補助的経済活動を行う事業所（３５熱供給業）","350　管理，補助的経済活動を行う事業所（３５熱供給業）",null,null,"350　管理，補助的経済活動を行う事業所（３５熱供給業）"]
[null,null,null,351,"熱供給業","351　熱供給業",null,null,"351　熱供給業"]
[null,36,"水道業",360,"管理，補助的経済活動を行う事業所（３６水道業）","360　管理，補助的経済活動を行う事業所（３６水道業）",null,null,"360　管理，補助的経済活動を行う事業所（３６水道業）"]
[null,null,null,361,"上水道業","361　上水道業",null,null,"361　上水道業"]
[null,null,null,362,"工業用水道業","362　工業用水道業",null,null,"362　工業用水道業"]
[null,null,null,363,"下水道業","363　下水道業",null,null,"363　下水道業"]
["G　情報通信業",37,"通信業",370,"管理，補助的経済活動を行う事業所（３７通信業）","370　管理，補助的経済活動を行う事業所（３７通信業）",null,null,"370　管理，補助的経済活動を行う事業所（３７通信業）"]
[null,null,null,371,"固定電気通信業","371　固定電気通信業",null,null,"371　固定電気通信業"]
[null,null,null,372,"移動電気通信業","372　移動電気通信業",null,null,"372　移動電気通信業"]
[null,null,null,373,"電気通信に附帯するサービス業","373　電気通信に附帯するサービス業",null,null,"373　電気通信に附帯するサービス業"]
[null,38,"放送業",380,"管理，補助的経済活動を行う事業所（３８放送業）","380　管理，補助的経済活動を行う事業所（３８放送業）",null,null,"380　管理，補助的経済活動を行う事業所（３８放送業）"]
[null,null,null,381,"公共放送業（有線放送業を除く）","381　公共放送業（有線放送業を除く）",null,null,"381　公共放送業（有線放送業を除く）"]
[null,null,null,382,"民間放送業（有線放送業を除く）","382　民間放送業（有線放送業を除く）",null,null,"382　民間放送業（有線放送業を除く）"]
[null,null,null,383,"有線放送業","383　有線放送業",null,null,"383　有線放送業"]
[null,39,"情報サービス業",390,"管理，補助的経済活動を行う事業所（３９情報サービス業）","390　管理，補助的経済活動を行う事業所（３９情報サービス業）",null,null,"390　管理，補助的経済活動を行う事業所（３９情報サービス業）"]
[null,null,null,391,"ソフトウェア業","391　ソフトウェア業",null,null,"391　ソフトウェア業"]
[null,null,null,392,"情報処理・提供サービス業","392　情報処理・提供サービス業",null,null,"392　情報処理・提供サービス業"]
[null,40,"インターネット附随サービス業",400,"管理、補助的経済活動を行う事業所（40 インターネット附随サービス業）","400　管理、補助的経済活動を行う事業所（40 インターネット附随サービス業）",null,null,"400　管理、補助的経済活動を行う事業所（40 インターネット附随サービス業）"]
[null,null,null,401,"インターネット附随サービス業","401　インターネット附随サービス業",null,null,"401　インターネット附随サービス業"]
[null,41,"映像・音声・文字情報制作業",410,"管理・補助的経済活動を行う事業所（41 映像・音声・文字情報制作業）","410　管理・補助的経済活動を行う事業所（41 映像・音声・文字情報制作業）",null,null,"410　管理・補助的経済活動を行う事業所（41 映像・音声・文字情報制作業）"]
[null,null,null,411,"映像情報制作・配給業","411　映像情報制作・配給業",null,null,"411　映像情報制作・配給業"]
[null,null,null,412,"音声情報制作業","412　音声情報制作業",null,null,"412　音声情報制作業"]
[null,null,null,413,"新聞業","413　新聞業",null,null,"413　新聞業"]
[null,null,null,414,"出版業","414　出版業",null,null,"414　出版業"]
[null,null,null,415,"広告制作業","415　広告制作業",null,null,"415　広告制作業"]
[null,null,null,416,"映像・音声・文字情報制作に附帯するサービス業","416　映像・音声・文字情報制作に附帯するサービス業",null,null,"416　映像・音声・文字情報制作に附帯するサービス業"]
["H　運輸業・郵便業",42,"鉄道業",420,"管理，補助的経済活動を行う事業所（４２鉄道業）","420　管理，補助的経済活動を行う事業所（４２鉄道業）",null,null,"420　管理，補助的経済活動を行う事業所（４２鉄道業）"]
[null,null,null,421,"鉄道業","421　鉄道業",null,null,"421　鉄道業"]
[null,43,"道路旅客運送業",430,"管理，補助的経済活動を行う事業所（４３道路旅客運送業）","430　管理，補助的経済活動を行う事業所（４３道路旅客運送業）",null,null,"430　管理，補助的経済活動を行う事業所（４３道路旅客運送業）"]
[null,null,null,431,"一般乗合旅客自動車運送業",{"$f":"D267&\"　\"&E267","v":"431　一般乗合旅客自動車運送業"},null,null,"431　一般乗合旅客自動車運送業"]
[null,null,null,432,"一般乗用旅客自動車運送業","432　一般乗用旅客自動車運送業",null,null,"432　一般乗用旅客自動車運送業"]
[null,null,null,433,"一般貸切旅客自動車運送業","433　一般貸切旅客自動車運送業",null,null,"433　一般貸切旅客自動車運送業"]
[null,null,null,439,"その他の道路旅客運送業","439　その他の道路旅客運送業",null,null,"439　その他の道路旅客運送業"]
[null,44,"道路貨物運送業",440,"管理，補助的経済活動を行う事業所（４４道路貨物運送業）","440　管理，補助的経済活動を行う事業所（４４道路貨物運送業）",null,null,"440　管理，補助的経済活動を行う事業所（４４道路貨物運送業）"]
[null,null,null,441,"一般貨物自動車運送業","441　一般貨物自動車運送業",null,null,"441　一般貨物自動車運送業"]
[null,null,null,442,"特定貨物自動車運送業","442　特定貨物自動車運送業",null,null,"442　特定貨物自動車運送業"]
[null,null,null,443,"貨物軽自動車運送業","443　貨物軽自動車運送業",null,null,"443　貨物軽自動車運送業"]
[null,null,null,444,"集配利用運送業","444　集配利用運送業",null,null,"444　集配利用運送業"]
[null,null,null,449,"その他の道路貨物運送業","449　その他の道路貨物運送業",null,null,"449　その他の道路貨物運送業"]
[null,45,"水運業",450,"管理，補助的経済活動を行う事業所（４５水運業）","450　管理，補助的経済活動を行う事業所（４５水運業）",null,null,"450　管理，補助的経済活動を行う事業所（４５水運業）"]
[null,null,null,451,"外航海運業","451　外航海運業",null,null,"451　外航海運業"]
[null,null,null,452,"沿海海運業","452　沿海海運業",null,null,"452　沿海海運業"]
[null,null,null,453,"内陸水運業","453　内陸水運業",null,null,"453　内陸水運業"]
[null,null,null,454,"船舶貸渡業","454　船舶貸渡業",null,null,"454　船舶貸渡業"]
[null,46,"航空運輸業",460,"管理，補助的経済活動を行う事業所（４６航空運輸業）","460　管理，補助的経済活動を行う事業所（４６航空運輸業）",null,null,"460　管理，補助的経済活動を行う事業所（４６航空運輸業）"]
[null,null,null,461,"航空運送業","461　航空運送業",null,null,"461　航空運送業"]
[null,null,null,462,"航空機使用業（航空運送業を除く）","462　航空機使用業（航空運送業を除く）",null,null,"462　航空機使用業（航空運送業を除く）"]
[null,47,"倉庫業",470,"管理，補助的経済活動を行う事業所（４７倉庫業）","470　管理，補助的経済活動を行う事業所（４７倉庫業）",null,null,"470　管理，補助的経済活動を行う事業所（４７倉庫業）"]
[null,null,null,471,"倉庫業（冷蔵倉庫業を除く）","471　倉庫業（冷蔵倉庫業を除く）",null,null,"471　倉庫業（冷蔵倉庫業を除く）"]
[null,null,null,472,"冷蔵倉庫業","472　冷蔵倉庫業",null,null,"472　冷蔵倉庫業"]
[null,48,"運輸に附帯するサービス業",481,"港湾運送業","481　港湾運送業",null,null,"481　港湾運送業"]
[null,null,null,482,"貨物運送取扱業（集配利用運送業を除く）","482　貨物運送取扱業（集配利用運送業を除く）",null,null,"482　貨物運送取扱業（集配利用運送業を除く）"]
[null,null,null,483,"運送代理店","483　運送代理店",null,null,"483　運送代理店"]
[null,null,null,484,"こん包業","484　こん包業",null,null,"484　こん包業"]
[null,null,null,485,"運輸施設提供業","485　運輸施設提供業",null,null,"485　運輸施設提供業"]
[null,null,null,489,"その他の運輸に附帯するサービス業","489　その他の運輸に附帯するサービス業",null,null,"489　その他の運輸に附帯するサービス業"]
[null,49,"郵便業\n（信書便事業を含む）",490,"管理，補助的経済活動を行う事業所（４９郵便業）","490　管理，補助的経済活動を行う事業所（４９郵便業）",null,null,"490　管理，補助的経済活動を行う事業所（４９郵便業）"]
[null,null,null,491,"郵便業（信書便事業を含む）","491　郵便業（信書便事業を含む）",null,null,"491　郵便業（信書便事業を含む）"]
["I　卸売業・小売業",50,"各種商品卸売業",500,"管理，補助的経済活動を行う事業所（５０各種商品卸売業）","500　管理，補助的経済活動を行う事業所（５０各種商品卸売業）",null,null,"500　管理，補助的経済活動を行う事業所（５０各種商品卸売業）"]
[null,null,null,501,"各種商品卸売業","501　各種商品卸売業",null,null,"501　各種商品卸売業"]
[null,51,"繊維・衣服等卸売業",510,"管理，補助的経済活動を行う事業所（５１繊維・衣服等卸売業）","510　管理，補助的経済活動を行う事業所（５１繊維・衣服等卸売業）",null,null,"510　管理，補助的経済活動を行う事業所（５１繊維・衣服等卸売業）"]
[null,null,null,511,"繊維品卸売業（衣服，身の回り品を除く）","511　繊維品卸売業（衣服，身の回り品を除く）",null,null,"511　繊維品卸売業（衣服，身の回り品を除く）"]
[null,null,null,512,"衣服卸売業","512　衣服卸売業",null,null,"512　衣服卸売業"]
[null,null,null,513,"身の回り品卸売業","513　身の回り品卸売業",null,null,"513　身の回り品卸売業"]
[null,52,"飲食料品卸売業",520,"管理，補助的経済活動を行う事業所（５２飲食料品卸売業）","520　管理，補助的経済活動を行う事業所（５２飲食料品卸売業）",null,null,"520　管理，補助的経済活動を行う事業所（５２飲食料品卸売業）"]
[null,null,null,521,"農畜産物・水産物卸売業","521　農畜産物・水産物卸売業",null,null,"521　農畜産物・水産物卸売業"]
[null,null,null,522,"食料・飲料卸売業","522　食料・飲料卸売業",null,null,"522　食料・飲料卸売業"]
[null,53,"建築材料，鉱物・金属材料等卸売業",530,"管理、補助的経済活動を行う事業所（53 建築材料、鉱物・金属材料等卸売業）","530　管理、補助的経済活動を行う事業所（53 建築材料、鉱物・金属材料等卸売業）",null,null,"530　管理、補助的経済活動を行う事業所（53 建築材料、鉱物・金属材料等卸売業）"]
[null,null,null,531,"建築材料卸売業","531　建築材料卸売業",null,null,"531　建築材料卸売業"]
[null,null,null,532,"化学製品卸売業","532　化学製品卸売業",null,null,"532　化学製品卸売業"]
[null,null,null,533,"石油・鉱物卸売業","533　石油・鉱物卸売業",null,null,"533　石油・鉱物卸売業"]
[null,null,null,534,"鉄鋼製品卸売業","534　鉄鋼製品卸売業",null,null,"534　鉄鋼製品卸売業"]
[null,null,null,535,"非鉄金属卸売業","535　非鉄金属卸売業",null,null,"535　非鉄金属卸売業"]
[null,null,null,536,"再生資源卸売業","536　再生資源卸売業",null,null,"536　再生資源卸売業"]
[null,54,"機械器具卸売業",540,"管理，補助的経済活動を行う事業所（５４機械器具卸売業）","540　管理，補助的経済活動を行う事業所（５４機械器具卸売業）",null,null,"540　管理，補助的経済活動を行う事業所（５４機械器具卸売業）"]
[null,null,null,541,"産業機械器具卸売業","541　産業機械器具卸売業",null,null,"541　産業機械器具卸売業"]
[null,null,null,542,"自動車卸売業","542　自動車卸売業",null,null,"542　自動車卸売業"]
[null,null,null,543,"電気機械器具卸売業","543　電気機械器具卸売業",null,null,"543　電気機械器具卸売業"]
[null,null,null,549,"その他の機械器具卸売業","549　その他の機械器具卸売業",null,null,"549　その他の機械器具卸売業"]
[null,55,"その他の卸売業",550,"管理，補助的経済活動を行う事業所（５５その他の卸売業）","550　管理，補助的経済活動を行う事業所（５５その他の卸売業）",null,null,"550　管理，補助的経済活動を行う事業所（５５その他の卸売業）"]
[null,null,null,551,"家具・建具・じゅう器等卸売業","551　家具・建具・じゅう器等卸売業",null,null,"551　家具・建具・じゅう器等卸売業"]
[null,null,null,552,"医薬品・化粧品等卸売業","552　医薬品・化粧品等卸売業",null,null,"552　医薬品・化粧品等卸売業"]
[null,null,null,553,"紙・紙製品卸売業","553　紙・紙製品卸売業",null,null,"553　紙・紙製品卸売業"]
[null,null,null,559,"他に分類されない卸売業","559　他に分類されない卸売業",null,null,"559　他に分類されない卸売業"]
[null,56,"各種商品小売業",560,"管理，補助的経済活動を行う事業所（５６各種商品小売業）","560　管理，補助的経済活動を行う事業所（５６各種商品小売業）",null,null,"560　管理，補助的経済活動を行う事業所（５６各種商品小売業）"]
[null,null,null,561,"百貨店","561　百貨店",null,null,"561　百貨店"]
[null,null,null,562,"総合スーパーマーケット","562　総合スーパーマーケット",null,null,"562　総合スーパーマーケット"]
[null,null,null,563,"コンビニエンスストア","563　コンビニエンスストア",null,null,"563　コンビニエンスストア"]
[null,null,null,564,"ドラッグストア","564　ドラッグストア",null,null,"564　ドラッグストア"]
[null,null,null,565,"ホームセンター","565　ホームセンター",null,null,"565　ホームセンター"]
[null,null,null,566,"均一価格店","566　均一価格店",null,null,"566　均一価格店"]
[null,null,null,569,"その他の各種商品小売業","569　その他の各種商品小売業",null,null,"569　その他の各種商品小売業"]
[null,57,"織物・衣服・身の回り品小売業",570,"管理、補助的経済活動を行う事業所（57 織物・衣服・身の回り品小売業）","570　管理、補助的経済活動を行う事業所（57 織物・衣服・身の回り品小売業）",null,null,"570　管理、補助的経済活動を行う事業所（57 織物・衣服・身の回り品小売業）"]
[null,null,null,571,"呉服・服地・寝具小売業","571　呉服・服地・寝具小売業",null,null,"571　呉服・服地・寝具小売業"]
[null,null,null,572,"男子服小売業","572　男子服小売業",null,null,"572　男子服小売業"]
[null,null,null,573,"婦人・子供服小売業","573　婦人・子供服小売業",null,null,"573　婦人・子供服小売業"]
[null,null,null,574,"靴・履物小売業","574　靴・履物小売業",null,null,"574　靴・履物小売業"]
[null,null,null,579,"その他の織物・衣服・身の回り品小売業","579　その他の織物・衣服・身の回り品小売業",null,null,"579　その他の織物・衣服・身の回り品小売業"]
[null,58,"飲食料品小売業",580,"管理，補助的経済活動を行う事業所（５８飲食料品小売業）",{"$f":"D336&\"　\"&E336","v":"580　管理，補助的経済活動を行う事業所（５８飲食料品小売業）"},null,null,"580　管理，補助的経済活動を行う事業所（５８飲食料品小売業）"]
[null,null,null,581,"各種食料品小売業","581　各種食料品小売業",null,null,"581　各種食料品小売業"]
[null,null,null,582,"野菜・果実小売業","582　野菜・果実小売業",null,null,"582　野菜・果実小売業"]
[null,null,null,583,"食肉小売業","583　食肉小売業",null,null,"583　食肉小売業"]
[null,null,null,584,"鮮魚小売業","584　鮮魚小売業",null,null,"584　鮮魚小売業"]
[null,null,null,585,"酒小売業","585　酒小売業",null,null,"585　酒小売業"]
[null,null,null,586,"菓子・パン小売業","586　菓子・パン小売業",null,null,"586　菓子・パン小売業"]
[null,null,null,589,"その他の飲食料品小売業","589　その他の飲食料品小売業",null,null,"589　その他の飲食料品小売業"]
[null,59,"機械器具小売業",590,"管理，補助的経済活動を行う事業所（５９機械器具小売業）","590　管理，補助的経済活動を行う事業所（５９機械器具小売業）",null,null,"590　管理，補助的経済活動を行う事業所（５９機械器具小売業）"]
[null,null,null,591,"自動車小売業","591　自動車小売業",null,null,"591　自動車小売業"]
[null,null,null,592,"自転車小売業","592　自転車小売業",null,null,"592　自転車小売業"]
[null,null,null,593,"機械器具小売業（自動車，自転車を除く）","593　機械器具小売業（自動車，自転車を除く）",null,null,"593　機械器具小売業（自動車，自転車を除く）"]
[null,60,"その他の小売業",600,"管理，補助的経済活動を行う事業所（６０その他の小売業）","600　管理，補助的経済活動を行う事業所（６０その他の小売業）",null,null,"600　管理，補助的経済活動を行う事業所（６０その他の小売業）"]
[null,null,null,601,"家具・建具・畳小売業","601　家具・建具・畳小売業",null,null,"601　家具・建具・畳小売業"]
[null,null,null,602,"じゅう器小売業","602　じゅう器小売業",null,null,"602　じゅう器小売業"]
[null,null,null,603,"医薬品・化粧品小売業","603　医薬品・化粧品小売業",null,null,"603　医薬品・化粧品小売業"]
[null,null,null,604,"農耕用品小売業","604　農耕用品小売業",null,null,"604　農耕用品小売業"]
[null,null,null,605,"燃料小売業","605　燃料小売業",null,null,"605　燃料小売業"]
[null,null,null,606,"書籍・文房具小売業","606　書籍・文房具小売業",null,null,"606　書籍・文房具小売業"]
[null,null,null,607,"スポーツ用品・がん具・娯楽用品・楽器小売業","607　スポーツ用品・がん具・娯楽用品・楽器小売業",null,null,"607　スポーツ用品・がん具・娯楽用品・楽器小売業"]
[null,null,null,608,"写真機・時計・眼鏡小売業","608　写真機・時計・眼鏡小売業",null,null,"608　写真機・時計・眼鏡小売業"]
[null,null,null,609,"他に分類されない小売業","609　他に分類されない小売業",null,null,"609　他に分類されない小売業"]
[null,61,"無店舗小売業",610,"管理，補助的経済活動を行う事業所（６１無店舗小売業）","610　管理，補助的経済活動を行う事業所（６１無店舗小売業）",null,null,"610　管理，補助的経済活動を行う事業所（６１無店舗小売業）"]
[null,null,null,611,"通信販売・訪問販売小売業","611　通信販売・訪問販売小売業",null,null,"611　通信販売・訪問販売小売業"]
[null,null,null,612,"自動販売機による小売業","612　自動販売機による小売業",null,null,"612　自動販売機による小売業"]
[null,null,null,619,"その他の無店舗小売業","619　その他の無店舗小売業",null,null,"619　その他の無店舗小売業"]
["J　金融業・保険業",62,"銀行業",620,"管理，補助的経済活動を行う事業所（６２銀行業）","620　管理，補助的経済活動を行う事業所（６２銀行業）",null,null,"620　管理，補助的経済活動を行う事業所（６２銀行業）"]
[null,null,null,621,"中央銀行","621　中央銀行",null,null,"621　中央銀行"]
[null,null,null,622,"銀行（中央銀行を除く）","622　銀行（中央銀行を除く）",null,null,"622　銀行（中央銀行を除く）"]
[null,63,"協同組織金融業",630,"管理，補助的経済活動を行う事業所（６３協同組織金融業）","630　管理，補助的経済活動を行う事業所（６３協同組織金融業）",null,null,"630　管理，補助的経済活動を行う事業所（６３協同組織金融業）"]
[null,null,null,631,"中小企業等金融業","631　中小企業等金融業",null,null,"631　中小企業等金融業"]
[null,null,null,632,"農林水産金融業","632　農林水産金融業",null,null,"632　農林水産金融業"]
[null,64,"貸金業，クレジットカード業等非預金信用機関",640,"管理、補助的経済活動を行う事業所（64 貸金業、クレジットカード等非預金信用機関）","640　管理、補助的経済活動を行う事業所（64 貸金業、クレジットカード等非預金信用機関）",null,null,"640　管理、補助的経済活動を行う事業所（64 貸金業、クレジットカード等非預金信用機関）"]
[null,null,null,641,"貸金業","641　貸金業",null,null,"641　貸金業"]
[null,null,null,642,"質屋","642　質屋",null,null,"642　質屋"]
[null,null,null,643,"クレジットカード業，割賦金融業","643　クレジットカード業，割賦金融業",null,null,"643　クレジットカード業，割賦金融業"]
[null,null,null,649,"その他の非預金信用機関","649　その他の非預金信用機関",null,null,"649　その他の非預金信用機関"]
[null,65,"金融商品取引業，商品先物取引業",650,"管理、補助的経済活動を行う事業所（65 金融商品取引業、商品先物取引業）","650　管理、補助的経済活動を行う事業所（65 金融商品取引業、商品先物取引業）",null,null,"650　管理、補助的経済活動を行う事業所（65 金融商品取引業、商品先物取引業）"]
[null,null,null,651,"金融商品取引業","651　金融商品取引業",null,null,"651　金融商品取引業"]
[null,null,null,652,"商品先物取引業，商品投資業","652　商品先物取引業，商品投資業",null,null,"652　商品先物取引業，商品投資業"]
[null,66,"補助的金融業等",660,"管理，補助的経済活動を行う事業所（６６補助的金融業等）","660　管理，補助的経済活動を行う事業所（６６補助的金融業等）",null,null,"660　管理，補助的経済活動を行う事業所（６６補助的金融業等）"]
[null,null,null,661,"補助的金融業，金融附帯業","661　補助的金融業，金融附帯業",null,null,"661　補助的金融業，金融附帯業"]
[null,null,null,662,"信託業","662　信託業",null,null,"662　信託業"]
[null,null,null,663,"金融代理業","663　金融代理業",null,null,"663　金融代理業"]
[null,67,"保険業（保険媒介代理業，保険サービス業を含む）",670,"管理，補助的経済活動を行う事業所（６７保険業）","670　管理，補助的経済活動を行う事業所（６７保険業）",null,null,"670　管理，補助的経済活動を行う事業所（６７保険業）"]
[null,null,null,671,"生命保険業","671　生命保険業",null,null,"671　生命保険業"]
[null,null,null,672,"損害保険業","672　損害保険業",null,null,"672　損害保険業"]
[null,null,null,673,"共済事業・少額短期保険業","673　共済事業・少額短期保険業",null,null,"673　共済事業・少額短期保険業"]
[null,null,null,674,"保険媒介代理業","674　保険媒介代理業",null,null,"674　保険媒介代理業"]
[null,null,null,675,"保険サービス業","675　保険サービス業",null,null,"675　保険サービス業"]
["K　不動産業・物品賃貸業",68,"不動産取引業",680,"管理，補助的経済活動を行う事業所（６８不動産取引業）","680　管理，補助的経済活動を行う事業所（６８不動産取引業）",null,null,"680　管理，補助的経済活動を行う事業所（６８不動産取引業）"]
[null,null,null,681,"建物売買業，土地売買業","681　建物売買業，土地売買業",null,null,"681　建物売買業，土地売買業"]
[null,null,null,682,"不動産代理業・仲介業","682　不動産代理業・仲介業",null,null,"682　不動産代理業・仲介業"]
[null,69,"不動産賃貸業・管理業",690,"管理，補助的経済活動を行う事業所（６９不動産賃貸業・管理業）","690　管理，補助的経済活動を行う事業所（６９不動産賃貸業・管理業）",null,null,"690　管理，補助的経済活動を行う事業所（６９不動産賃貸業・管理業）"]
[null,null,null,691,"不動産賃貸業（貸家業，貸間業を除く）","691　不動産賃貸業（貸家業，貸間業を除く）",null,null,"691　不動産賃貸業（貸家業，貸間業を除く）"]
[null,null,null,692,"貸家業，貸間業","692　貸家業，貸間業",null,null,"692　貸家業，貸間業"]
[null,null,null,693,"駐車場業","693　駐車場業",null,null,"693　駐車場業"]
[null,null,null,694,"不動産管理業","694　不動産管理業",null,null,"694　不動産管理業"]
[null,70,"物品賃貸業",700,"管理，補助的経済活動を行う事業所（７０物品賃貸業）","700　管理，補助的経済活動を行う事業所（７０物品賃貸業）",null,null,"700　管理，補助的経済活動を行う事業所（７０物品賃貸業）"]
[null,null,null,701,"各種物品賃貸業","701　各種物品賃貸業",null,null,"701　各種物品賃貸業"]
[null,null,null,702,"産業用機械器具賃貸業","702　産業用機械器具賃貸業",null,null,"702　産業用機械器具賃貸業"]
[null,null,null,703,"事務用機械器具賃貸業","703　事務用機械器具賃貸業",null,null,"703　事務用機械器具賃貸業"]
[null,null,null,704,"自動車賃貸業","704　自動車賃貸業",null,null,"704　自動車賃貸業"]
[null,null,null,705,"スポーツ・娯楽用品賃貸業","705　スポーツ・娯楽用品賃貸業",null,null,"705　スポーツ・娯楽用品賃貸業"]
[null,null,null,709,"その他の物品賃貸業",{"$f":"D400&\"　\"&E400","v":"709　その他の物品賃貸業"},null,null,"709　その他の物品賃貸業"]
["L　学術研究・専門・技術サービス業",71,"学術・開発研究機関",710,"管理，補助的経済活動を行う事業所（７１学術・開発研究機関）","710　管理，補助的経済活動を行う事業所（７１学術・開発研究機関）",null,null,"710　管理，補助的経済活動を行う事業所（７１学術・開発研究機関）"]
[null,null,null,711,"自然科学研究所","711　自然科学研究所",null,null,"711　自然科学研究所"]
[null,null,null,712,"人文・社会科学研究所","712　人文・社会科学研究所",null,null,"712　人文・社会科学研究所"]
[null,72,"専門サービス業（他に分類されないもの）",720,"管理，補助的経済活動を行う事業所（７２専門サービス業）","720　管理，補助的経済活動を行う事業所（７２専門サービス業）",null,null,"720　管理，補助的経済活動を行う事業所（７２専門サービス業）"]
[null,null,null,721,"法律事務所，特許事務所","721　法律事務所，特許事務所",null,null,"721　法律事務所，特許事務所"]
[null,null,null,722,"公証人役場，司法書士事務所，土地家屋調査士事務所","722　公証人役場，司法書士事務所，土地家屋調査士事務所",null,null,"722　公証人役場，司法書士事務所，土地家屋調査士事務所"]
[null,null,null,723,"行政書士事務所","723　行政書士事務所",null,null,"723　行政書士事務所"]
[null,null,null,724,"公認会計士事務所，税理士事務所","724　公認会計士事務所，税理士事務所",null,null,"724　公認会計士事務所，税理士事務所"]
[null,null,null,725,"社会保険労務士事務所","725　社会保険労務士事務所",null,null,"725　社会保険労務士事務所"]
[null,null,null,726,"デザイン業","726　デザイン業",null,null,"726　デザイン業"]
[null,null,null,727,"著述・芸術家業","727　著述・芸術家業",null,null,"727　著述・芸術家業"]
[null,null,null,728,"経営コンサルタント業，純粋持株会社","728　経営コンサルタント業，純粋持株会社",null,null,"728　経営コンサルタント業，純粋持株会社"]
[null,null,null,729,"その他の専門サービス業","729　その他の専門サービス業",null,null,"729　その他の専門サービス業"]
[null,73,"広告業",730,"管理，補助的経済活動を行う事業所（７３広告業）","730　管理，補助的経済活動を行う事業所（７３広告業）",null,null,"730　管理，補助的経済活動を行う事業所（７３広告業）"]
[null,null,null,731,"広告業","731　広告業",null,null,"731　広告業"]
[null,74,"技術サービス業（他に分類されないもの）",740,"管理，補助的経済活動を行う事業所（７４技術サービス業）","740　管理，補助的経済活動を行う事業所（７４技術サービス業）",null,null,"740　管理，補助的経済活動を行う事業所（７４技術サービス業）"]
[null,null,null,741,"獣医業","741　獣医業",null,null,"741　獣医業"]
[null,null,null,742,"土木建築サービス業","742　土木建築サービス業",null,null,"742　土木建築サービス業"]
[null,null,null,743,"機械設計業","743　機械設計業",null,null,"743　機械設計業"]
[null,null,null,744,"商品・非破壊検査業","744　商品・非破壊検査業",null,null,"744　商品・非破壊検査業"]
[null,null,null,745,"計量証明業","745　計量証明業",null,null,"745　計量証明業"]
[null,null,null,746,"写真業","746　写真業",null,null,"746　写真業"]
[null,null,null,749,"その他の技術サービス業","749　その他の技術サービス業",null,null,"749　その他の技術サービス業"]
["M　宿泊業・飲食サービス業",75,"宿泊業",750,"管理，補助的経済活動を行う事業所（７５宿泊業）","750　管理，補助的経済活動を行う事業所（７５宿泊業）",null,null,"750　管理，補助的経済活動を行う事業所（７５宿泊業）"]
[null,null,null,751,"旅館，ホテル","751　旅館，ホテル",null,null,"751　旅館，ホテル"]
[null,null,null,752,"簡易宿所","752　簡易宿所",null,null,"752　簡易宿所"]
[null,null,null,753,"下宿業","753　下宿業",null,null,"753　下宿業"]
[null,null,null,759,"その他の宿泊業","759　その他の宿泊業",null,null,"759　その他の宿泊業"]
[null,76,"飲食店",760,"管理，補助的経済活動を行う事業所（７６飲食店）","760　管理，補助的経済活動を行う事業所（７６飲食店）",null,null,"760　管理，補助的経済活動を行う事業所（７６飲食店）"]
[null,null,null,761,"食堂，レストラン（専門料理店を除く）","761　食堂，レストラン（専門料理店を除く）",null,null,"761　食堂，レストラン（専門料理店を除く）"]
[null,null,null,762,"専門料理店","762　専門料理店",null,null,"762　専門料理店"]
[null,null,null,763,"そば・うどん店","763　そば・うどん店",null,null,"763　そば・うどん店"]
[null,null,null,764,"すし店","764　すし店",null,null,"764　すし店"]
[null,null,null,765,"酒場，ビヤホール","765　酒場，ビヤホール",null,null,"765　酒場，ビヤホール"]
[null,null,null,766,"バー，キャバレー，ナイトクラブ","766　バー，キャバレー，ナイトクラブ",null,null,"766　バー，キャバレー，ナイトクラブ"]
[null,null,null,767,"喫茶店","767　喫茶店",null,null,"767　喫茶店"]
[null,null,null,769,"その他の飲食店","769　その他の飲食店",null,null,"769　その他の飲食店"]
[null,77,"持ち帰り・配達飲食サービス業",770,"管理、補助的経済活動を行う事業所（77 持ち帰り・配達飲食サービス業）","770　管理、補助的経済活動を行う事業所（77 持ち帰り・配達飲食サービス業）",null,null,"770　管理、補助的経済活動を行う事業所（77 持ち帰り・配達飲食サービス業）"]
[null,null,null,771,"持ち帰り飲食サービス業","771　持ち帰り飲食サービス業",null,null,"771　持ち帰り飲食サービス業"]
[null,null,null,772,"配達飲食サービス業","772　配達飲食サービス業",null,null,"772　配達飲食サービス業"]
[null,null,null,773,"施設給食業","773　施設給食業",null,null,"773　施設給食業"]
["N　生活関連サービス業・娯楽業",78,"洗濯・理容・美容・浴場業",780,"管理、補助的経済活動を行う事業所（78 洗濯・理容・美容・浴場業）","780　管理、補助的経済活動を行う事業所（78 洗濯・理容・美容・浴場業）",null,null,"780　管理、補助的経済活動を行う事業所（78 洗濯・理容・美容・浴場業）"]
[null,null,null,781,"洗濯業","781　洗濯業",null,null,"781　洗濯業"]
[null,null,null,782,"理容業","782　理容業",null,null,"782　理容業"]
[null,null,null,783,"美容業","783　美容業",null,null,"783　美容業"]
[null,null,null,784,"一般公衆浴場業","784　一般公衆浴場業",null,null,"784　一般公衆浴場業"]
[null,null,null,785,"その他の公衆浴場業","785　その他の公衆浴場業",null,null,"785　その他の公衆浴場業"]
[null,null,null,789,"その他の洗濯・理容・美容・浴場業","789　その他の洗濯・理容・美容・浴場業",null,null,"789　その他の洗濯・理容・美容・浴場業"]
[null,79,"その他の生活関連サービス業",790,"管理、補助的経済活動を行う事業所（79 その他の生活関連サービス業）","790　管理、補助的経済活動を行う事業所（79 その他の生活関連サービス業）",null,null,"790　管理、補助的経済活動を行う事業所（79 その他の生活関連サービス業）"]
[null,null,null,791,"旅行業","791　旅行業",null,null,"791　旅行業"]
[null,null,null,792,"家事サービス業","792　家事サービス業",null,null,"792　家事サービス業"]
[null,null,null,793,"衣服裁縫修理業","793　衣服裁縫修理業",null,null,"793　衣服裁縫修理業"]
[null,null,null,794,"物品預り業","794　物品預り業",null,null,"794　物品預り業"]
[null,null,null,795,"火葬・墓地管理業","795　火葬・墓地管理業",null,null,"795　火葬・墓地管理業"]
[null,null,null,796,"冠婚葬祭業","796　冠婚葬祭業",null,null,"796　冠婚葬祭業"]
[null,null,null,799,"他に分類されない生活関連サービス業","799　他に分類されない生活関連サービス業",null,null,"799　他に分類されない生活関連サービス業"]
[null,80,"娯楽業",800,"管理，補助的経済活動を行う事業所（８０娯楽業）","800　管理，補助的経済活動を行う事業所（８０娯楽業）",null,null,"800　管理，補助的経済活動を行う事業所（８０娯楽業）"]
[null,null,null,801,"映画館","801　映画館",null,null,"801　映画館"]
[null,null,null,802,"興行場（別掲を除く），興行団","802　興行場（別掲を除く），興行団",null,null,"802　興行場（別掲を除く），興行団"]
[null,null,null,803,"競輪・競馬等の競走場，競技団","803　競輪・競馬等の競走場，競技団",null,null,"803　競輪・競馬等の競走場，競技団"]
[null,null,null,804,"スポーツ施設提供業","804　スポーツ施設提供業",null,null,"804　スポーツ施設提供業"]
[null,null,null,805,"公園，遊園地","805　公園，遊園地",null,null,"805　公園，遊園地"]
[null,null,null,806,"遊戯場","806　遊戯場",null,null,"806　遊戯場"]
[null,null,null,809,"その他の娯楽業","809　その他の娯楽業",null,null,"809　その他の娯楽業"]
["O　教育・学習支援業",81,"学校教育",810,"管理，補助的経済活動を行う事業所（８１学校教育）",{"$f":"D465&\"　\"&E465","v":"810　管理，補助的経済活動を行う事業所（８１学校教育）"},null,null,"810　管理，補助的経済活動を行う事業所（８１学校教育）"]
[null,null,null,811,"幼稚園","811　幼稚園",null,null,"811　幼稚園"]
[null,null,null,812,"小学校","812　小学校",null,null,"812　小学校"]
[null,null,null,813,"中学校、義務教育学校","813　中学校、義務教育学校",null,null,"813　中学校、義務教育学校"]
[null,null,null,814,"高等学校，中等教育学校","814　高等学校，中等教育学校",null,null,"814　高等学校，中等教育学校"]
[null,null,null,815,"特別支援学校","815　特別支援学校",null,null,"815　特別支援学校"]
[null,null,null,816,"高等教育機関","816　高等教育機関",null,null,"816　高等教育機関"]
[null,null,null,817,"専修学校，各種学校","817　専修学校，各種学校",null,null,"817　専修学校，各種学校"]
[null,null,null,818,"学校教育支援機関","818　学校教育支援機関",null,null,"818　学校教育支援機関"]
[null,82,"その他の教育，学習支援業",820,"管理、補助的経済活動を行う事業所（82 その他の教育、学習支援業）","820　管理、補助的経済活動を行う事業所（82 その他の教育、学習支援業）",null,null,"820　管理、補助的経済活動を行う事業所（82 その他の教育、学習支援業）"]
[null,null,null,821,"社会教育","821　社会教育",null,null,"821　社会教育"]
[null,null,null,822,"職業・教育支援施設","822　職業・教育支援施設",null,null,"822　職業・教育支援施設"]
[null,null,null,823,"学習塾","823　学習塾",null,null,"823　学習塾"]
[null,null,null,824,"教養・技能教授業","824　教養・技能教授業",null,null,"824　教養・技能教授業"]
[null,null,null,829,"他に分類されない教育，学習支援業","829　他に分類されない教育，学習支援業",null,null,"829　他に分類されない教育，学習支援業"]
["P　医療・福祉",83,"医療業",830,"管理，補助的経済活動を行う事業所（８３医療業）","830　管理，補助的経済活動を行う事業所（８３医療業）",null,null,"830　管理，補助的経済活動を行う事業所（８３医療業）"]
[null,null,null,831,"病院","831　病院",null,null,"831　病院"]
[null,null,null,832,"一般診療所","832　一般診療所",null,null,"832　一般診療所"]
[null,null,null,833,"歯科診療所","833　歯科診療所",null,null,"833　歯科診療所"]
[null,null,null,834,"助産・看護業","834　助産・看護業",null,null,"834　助産・看護業"]
[null,null,null,835,"施術業","835　施術業",null,null,"835　施術業"]
[null,null,null,836,"医療に附帯するサービス業","836　医療に附帯するサービス業",null,null,"836　医療に附帯するサービス業"]
[null,84,"保健衛生",840,"管理，補助的経済活動を行う事業所（８４保健衛生）","840　管理，補助的経済活動を行う事業所（８４保健衛生）",null,null,"840　管理，補助的経済活動を行う事業所（８４保健衛生）"]
[null,null,null,841,"保健所","841　保健所",null,null,"841　保健所"]
[null,null,null,842,"健康相談施設","842　健康相談施設",null,null,"842　健康相談施設"]
[null,null,null,849,"その他の保健衛生","849　その他の保健衛生",null,null,"849　その他の保健衛生"]
[null,85,"社会保険・社会福祉・介護事業",850,"管理、補助的経済活動を行う事業所（85 社会保険・社会福祉・介護事業）","850　管理、補助的経済活動を行う事業所（85 社会保険・社会福祉・介護事業）",null,null,"850　管理、補助的経済活動を行う事業所（85 社会保険・社会福祉・介護事業）"]
[null,null,null,851,"社会保険事業団体","851　社会保険事業団体",null,null,"851　社会保険事業団体"]
[null,null,null,852,"福祉事務所","852　福祉事務所",null,null,"852　福祉事務所"]
[null,null,null,853,"児童福祉事業","853　児童福祉事業",null,null,"853　児童福祉事業"]
[null,null,null,854,"老人福祉・介護事業","854　老人福祉・介護事業",null,null,"854　老人福祉・介護事業"]
[null,null,null,855,"障害者福祉事業","855　障害者福祉事業",null,null,"855　障害者福祉事業"]
[null,null,null,859,"その他の社会保険・社会福祉・介護事業","859　その他の社会保険・社会福祉・介護事業",null,null,"859　その他の社会保険・社会福祉・介護事業"]
["Q　複合サービス事業",86,"郵便局",860,"管理，補助的経済活動を行う事業所（８６郵便局）","860　管理，補助的経済活動を行う事業所（８６郵便局）",null,null,"860　管理，補助的経済活動を行う事業所（８６郵便局）"]
[null,null,null,861,"郵便局","861　郵便局",null,null,"861　郵便局"]
[null,null,null,862,"郵便局受託業","862　郵便局受託業",null,null,"862　郵便局受託業"]
[null,87,"協同組合\n（他に分類されないもの）",870,"管理，補助的経済活動を行う事業所（８７協同組合）","870　管理，補助的経済活動を行う事業所（８７協同組合）",null,null,"870　管理，補助的経済活動を行う事業所（８７協同組合）"]
[null,null,null,871,"農林水産業協同組合（他に分類されないもの）","871　農林水産業協同組合（他に分類されないもの）",null,null,"871　農林水産業協同組合（他に分類されないもの）"]
[null,null,null,872,"事業協同組合（他に分類されないもの）","872　事業協同組合（他に分類されないもの）",null,null,"872　事業協同組合（他に分類されないもの）"]
["R　サービス業（他に分類されないもの",88,"廃棄物処理業",880,"管理，補助的経済活動を行う事業所（８８廃棄物処理業）","880　管理，補助的経済活動を行う事業所（８８廃棄物処理業）",null,null,"880　管理，補助的経済活動を行う事業所（８８廃棄物処理業）"]
[null,null,null,881,"一般廃棄物処理業","881　一般廃棄物処理業",null,null,"881　一般廃棄物処理業"]
[null,null,null,882,"産業廃棄物処理業","882　産業廃棄物処理業",null,null,"882　産業廃棄物処理業"]
[null,null,null,889,"その他の廃棄物処理業","889　その他の廃棄物処理業",null,null,"889　その他の廃棄物処理業"]
[null,89,"自動車整備業",890,"管理，補助的経済活動を行う事業所（８９自動車整備業）","890　管理，補助的経済活動を行う事業所（８９自動車整備業）",null,null,"890　管理，補助的経済活動を行う事業所（８９自動車整備業）"]
[null,null,null,891,"自動車整備業","891　自動車整備業",null,null,"891　自動車整備業"]
[null,90,"機械等修理業（別掲を除く）",900,"管理，補助的経済活動を行う事業所（９０機械等修理業）","900　管理，補助的経済活動を行う事業所（９０機械等修理業）",null,null,"900　管理，補助的経済活動を行う事業所（９０機械等修理業）"]
[null,null,null,901,"機械修理業（電気機械器具を除く）","901　機械修理業（電気機械器具を除く）",null,null,"901　機械修理業（電気機械器具を除く）"]
[null,null,null,902,"電気機械器具修理業","902　電気機械器具修理業",null,null,"902　電気機械器具修理業"]
[null,null,null,903,"表具業","903　表具業",null,null,"903　表具業"]
[null,null,null,909,"その他の修理業","909　その他の修理業",null,null,"909　その他の修理業"]
[null,91,"職業紹介・労働者派遣業",910,"管理、補助的経済活動を行う事業所（91 職業紹介・労働者派遣業）","910　管理、補助的経済活動を行う事業所（91 職業紹介・労働者派遣業）",null,null,"910　管理、補助的経済活動を行う事業所（91 職業紹介・労働者派遣業）"]
[null,null,null,911,"職業紹介業","911　職業紹介業",null,null,"911　職業紹介業"]
[null,null,null,912,"労働者派遣業","912　労働者派遣業",null,null,"912　労働者派遣業"]
[null,92,"その他の事業サービス業",920,"管理、補助的経済活動を行う事業所（92 その他の事業サービス業）","920　管理、補助的経済活動を行う事業所（92 その他の事業サービス業）",null,null,"920　管理、補助的経済活動を行う事業所（92 その他の事業サービス業）"]
[null,null,null,921,"速記・ワープロ入力・複写業","921　速記・ワープロ入力・複写業",null,null,"921　速記・ワープロ入力・複写業"]
[null,null,null,922,"建物等維持管理業","922　建物等維持管理業",null,null,"922　建物等維持管理業"]
[null,null,null,923,"警備業","923　警備業",null,null,"923　警備業"]
[null,null,null,929,"他に分類されない事業サービス業","929　他に分類されない事業サービス業",null,null,"929　他に分類されない事業サービス業"]
[null,93,"政治・経済・文化団体",931,"経済団体","931　経済団体",null,null,"931　経済団体"]
[null,null,null,932,"労働団体","932　労働団体",null,null,"932　労働団体"]
[null,null,null,933,"学術・文化団体","933　学術・文化団体",null,null,"933　学術・文化団体"]
[null,null,null,934,"政治団体","934　政治団体",null,null,"934　政治団体"]
[null,null,null,939,"他に分類されない非営利的団体","939　他に分類されない非営利的団体",null,null,"939　他に分類されない非営利的団体"]
[null,94,"宗教",941,"神道系宗教","941　神道系宗教",null,null,"941　神道系宗教"]
[null,null,null,942,"仏教系宗教",{"$f":"D529&\"　\"&E529","v":"942　仏教系宗教"},null,null,"942　仏教系宗教"]
[null,null,null,943,"キリスト教系宗教","943　キリスト教系宗教",null,null,"943　キリスト教系宗教"]
[null,null,null,949,"その他の宗教","949　その他の宗教",null,null,"949　その他の宗教"]
[null,95,"その他のサービス業",950,"管理，補助的経済活動を行う事業所（９５その他のサービス業）","950　管理，補助的経済活動を行う事業所（９５その他のサービス業）",null,null,"950　管理，補助的経済活動を行う事業所（９５その他のサービス業）"]
[null,null,null,951,"集会場","951　集会場",null,null,"951　集会場"]
[null,null,null,952,"と畜場","952　と畜場",null,null,"952　と畜場"]
[null,null,null,959,"他に分類されないサービス業","959　他に分類されないサービス業",null,null,"959　他に分類されないサービス業"]
[null,96,"外国公務",961,"外国公館","961　外国公館",null,null,"961　外国公館"]
[null,null,null,969,"その他の外国公務","969　その他の外国公務",null,null,"969　その他の外国公務"]
["S　公務（他に分類されるものを除く）",97,"国家公務",971,"立法機関","971　立法機関",null,null,"971　立法機関"]
[null,null,null,972,"司法機関","972　司法機関",null,null,"972　司法機関"]
[null,null,null,973,"行政機関","973　行政機関",null,null,"973　行政機関"]
[null,98,"地方公務",981,"都道府県の機関","981　都道府県の機関",null,null,"981　都道府県の機関"]
[null,null,null,982,"市町村の機関","982　市町村の機関",null,null,"982　市町村の機関"]
["T　分類不能の産業",99,"分類不能の産業",999,"分類不能の産業","999　分類不能の産業",null,null,"999　分類不能の産業"]